{"text_format":"1","workbook":"xlsx","n_sheets":12,"sheets":["Супровідний лист до заявки","Інформація про організацію","Опис Проєктної Заявки","A. Обсяг роботи (опис завдань д","B. Робочий план","C. Бюджет","D. Опис бюджету","E. Графік платежів та звітності","F. NIH Standard TCs","Грантова Угода","Tecnical","Training"],"not_rendered":{"charts":0,"images":5,"macros":1,"external_links":0,"defined_names":11,"comments":0,"pivot_tables":0},"unopened":[],"bounds":{"document_bytes":16777216,"sheet_cells":100000,"rows_first":2000,"rows_last":500,"rows_between":2000,"halvings":0,"cell_chars":16384,"cell_head_chars":4096},"cells_cut":0,"cells_raw":0,"read":"whole","date_system":"1900"}

{"sheet":"Супровідний лист до заявки","index":0,"n_rows":47,"n_cols":18,"rows_kept":47,"cut":false,"hidden":false,"merged":[[2,0,30,8],[0,0,0,8]]}
["Супровідний лист до заявки"]
[]
["\n\nСупровідний лист до заявки\n\nRe: [Внесіть назву проєкту]\n\nЯ, [ПІБ уповноваженого підписанта від організації], затверджую, що надаю аплікаційну форму на участь у конкурсі   RFP DE-02-2023 ''Гранти на поліпшення кібербезпеки для державних інституцій України' від імені [внесіть повну назву організації, яка буде приймати участь у конкурсі].  \n\n У разі отримання гранту я підтверджую, що [вставте ім’я відповідальної за проєкт особи - відповідального виконавця] представлятиме [внесіть повну назву організації, яка буде приймати участь у конкурсі] під час реалізації проекту під назвою [вставте назву проєкту]\n\nЯ підтверджую, що подана аплікаційна формі налічує наступну інформацію:\n(1) Інформація про організацію,\n(2) Опис проєктної заявки,\n(3) Обсяг роботи (опис завдань для виконання),\n(4) Робочий план проєкту,\n(5) Бюджет,\n(6) Опис бюджету. \n\nяка є правдивою та затвердженою [внесіть повну назву організації, яка буде приймати участь у конкурсі].  \n\nЯ підтверджую, що прочитав_ла і зрозумів_ла політику та стандарти CRDF Global, викладені в RFP DE-02-2023 «Гранти на покращення кібербезпеки для державних установ в Україні», включаючи Загальні положення та умови CRDF Global.\n\n\nПідпис уповноваженого підписанта від організації: [Внесіть ПІБ та посаду особи з правом підпису]\n\n[Підпис]\n\n[Дата]\n\nПідпис відповідальної за проєкт особи - Відповідального виконавця: [ПІБ та посада відповідальної за проєкт особи - Відповідального виконавця]\n\n[Підпис]\n\n[Дата]"]
[]
[]
[]
[]
[null,null,null,null,null,null,null,null,null,null,null,null,null,null,null,null,null,{"$f":"B8","v":0}]
[]
[]
[null,null,null,null,null,null,null,null,null,null,null,null,null,null,null,null,null,{"$f":"D11","v":0}]
[null,null,null,null,null,null,null,null,null,null,null,null,null,null,null,null,null,{"$f":"D12","v":0}]
[null,null,null,null,null,null,null,null,null,null,null,null,null,null,null,null,null,{"$f":"D13","v":0}]
[null,null,null,null,null,null,null,null,null,null,null,null,null,null,null,null,null,{"$f":"D14","v":0}]
[null,null,null,null,null,null,null,null,null,null,null,null,null,null,null,null,null,0]
[null,null,null,null,null,null,null,null,null,null,null,null,null,null,null,null,null,0]
[]
[]
[null,null,null,null,null,null,null,null,null,null,null,null,null,null,null,null,null,{"$f":"B19","v":0}]
[]
[]
[null,null,null,null,null,null,null,null,null,null,null,null,null,null,null,null,null,{"$f":"B22","v":0}]
[]
[]
[]
[null,null,null,null,null,null,null,null,null,null,null,null,null,null,null,null,null,{"$f":"B26","v":0}]
[]
[]
[]
[]
[]
[]
[]
[null,null,null,null,null,null,null,null,null,null,null,null,null,null,null,null,null,{"$f":"E34","v":0}]
[null,null,null,null,null,null,null,null,null,null,null,null,null,null,null,null,null,{"$f":"E35","v":0}]
[]
[]
[null,null,null,null,null,null,null,null,null,null,null,null,null,null,null,null,null,0]
[null,null,null,null,null,null,null,null,null,null,null,null,null,null,null,null,null,0]
[null,null,null,null,null,null,null,null,null,null,null,null,null,null,null,null,null,0]
[null,null,null,null,null,null,null,null,null,null,null,null,null,null,null,null,null,0]
[null,null,null,null,null,null,null,null,null,null,null,null,null,null,null,null,null,{"$f":"D41","v":0}]
[]
[null,null,null,null,null,null,null,null,null,null,null,null,null,null,null,null,null,0]
[null,null,null,null,null,null,null,null,null,null,null,null,null,null,null,null,null,0]
[null,null,null,null,null,null,null,null,null,null,null,null,null,null,null,null,null,0]
[null,null,null,null,null,null,null,null,null,null,null,null,null,null,null,null,null,0]

{"sheet":"Інформація про організацію","index":1,"n_rows":91,"n_cols":18,"rows_kept":91,"cut":false,"hidden":false,"merged":[[10,1,10,2],[11,1,11,2],[14,1,14,2],[15,1,15,2],[88,1,88,5],[88,6,88,7],[90,1,90,5],[90,6,90,7],[82,1,82,5],[82,6,82,7],[84,1,84,5],[84,6,84,7],[86,1,86,5],[86,6,86,7],[78,1,78,5],[78,6,78,7],[80,1,80,5],[80,6,80,7],[72,1,72,5],[72,6,72,7],[74,1,74,5],[74,6,74,7],[76,1,76,5],[76,6,76,7],[66,1,66,5],[66,6,66,7],[68,1,68,5],[68,6,68,7],[70,1,70,5],[70,6,70,7],[10,3,10,7],[62,1,62,5],[62,6,62,7],[63,1,63,5],[63,6,63,7],[56,1,56,5],[56,6,56,7],[57,1,57,5],[57,6,57,7],[58,1,58,5],[58,6,58,7],[54,1,54,5],[54,6,54,7],[55,1,55,5],[55,6,55,7],[64,1,64,5],[64,6,64,7],[59,1,59,5],[59,6,59,7],[60,1,60,5],[60,6,60,7],[51,1,51,5],[51,6,51,7],[52,1,52,5],[52,6,52,7],[0,0,0,8],[29,1,29,5],[29,6,29,7],[18,1,18,7],[21,1,21,7],[25,1,25,7],[14,3,14,7],[11,3,11,7],[12,3,12,7],[15,3,15,7],[17,1,17,7],[20,1,20,7],[6,1,6,7],[9,1,9,7],[7,1,7,7],[13,3,13,7],[44,1,44,2],[44,3,44,7],[27,1,27,7],[49,1,49,7],[46,1,46,2],[46,3,46,7],[32,1,32,7],[33,1,33,3],[36,1,36,7],[28,1,28,7],[37,1,37,2],[45,1,45,2],[45,3,45,7],[38,1,38,2],[38,3,38,7],[39,1,39,2],[12,1,12,2],[13,1,13,2],[43,1,43,2],[43,3,43,7],[24,1,24,7],[39,3,39,7],[40,1,40,2],[40,3,40,7],[34,4,34,7],[42,1,42,7],[33,4,33,7],[34,1,34,3],[37,3,37,7],[30,6,30,7],[30,1,30,3],[30,4,30,5]]}
["ІНФОРМАЦІЯ ПРО ОРГАНІЗАЦІЮ "]
[]
[]
[]
[]
[]
[null,"1. Повна назва організації-грантера"]
[null,null,null,null,null,null,null,null,null,null,null,null,null,null,null,null,null,{"$f":"B8","v":0}]
[]
[null,"2. Адреса грантера"]
[null,"Адреса 1",null,null,null,null,null,null,null,null,null,null,null,null,null,null,null,{"$f":"D11","v":0}]
[null,"Адреса 2",null,null,null,null,null,null,null,null,null,null,null,null,null,null,null,{"$f":"D12","v":0}]
[null,"Місто",null,null,null,null,null,null,null,null,null,null,null,null,null,null,null,{"$f":"D13","v":0}]
[null,"Область",null,null,null,null,null,null,null,null,null,null,null,null,null,null,null,{"$f":"D14","v":0}]
[null,"Поштовий індекс",null,null,null,null,null,null,null,null,null,null,null,null,null,null,null,0]
[null,"Країна",null,"Ukraine",null,null,null,null,null,null,null,null,null,null,null,null,null,"Ukraine"]
[]
[null,"3. Телефон грантера"]
[null,null,null,null,null,null,null,null,null,null,null,null,null,null,null,null,null,{"$f":"B19","v":0}]
[]
[null,"4. Електронна пошта грантера"]
[null,null,null,null,null,null,null,null,null,null,null,null,null,null,null,null,null,{"$f":"B22","v":0}]
[]
[]
[null,"5. Веб-сайт грантера"]
[null,null,null,null,null,null,null,null,null,null,null,null,null,null,null,null,null,{"$f":"B26","v":0}]
[]
[null,"6. Тип закладу / організації"]
[null,"Виберіть варіант:"]
[null," Чи зареєстрована ваша організація як благодійна / неприбуткова? ",null,null,null,null,"Виберіть варіант"]
[null,"Чи застосовується у вашій організації єдиний аудит відповідно до законодавства США? (single audited)"]
[]
[null,"7. Унікальний ідентифікаційний номер організації"]
[null,"UEID",null,null,null,null,null,null,null,null,null,null,null,null,null,null,null,{"$f":"E34","v":0}]
[null,"Локальний реєстраційний номер",null,null,null,null,null,null,null,null,null,null,null,null,null,null,null,{"$f":"E35","v":0}]
[]
[null,"8. Відповідальний виконавець"]
[null,"Ім'я",null,null,null,null,null,null,null,null,null,null,null,null,null,null,null,0]
[null,"Посада",null,null,null,null,null,null,null,null,null,null,null,null,null,null,null,0]
[null,"Номер телефону",null,null,null,null,null,null,null,null,null,null,null,null,null,null,null,0]
[null,"Електронна адреса",null,null,null,null,null,null,null,null,null,null,null,null,null,null,null,0]
[null,null,null,null,null,null,null,null,null,null,null,null,null,null,null,null,null,{"$f":"D41","v":0}]
[null,"9. Уповноважений представник установи для підписання документів"]
[null,"Ім'я",null,null,null,null,null,null,null,null,null,null,null,null,null,null,null,0]
[null,"Посада",null,null,null,null,null,null,null,null,null,null,null,null,null,null,null,0]
[null,"Номер телефону",null,null,null,null,null,null,null,null,null,null,null,null,null,null,null,0]
[null,"Електронна адреса",null,null,null,null,null,null,null,null,null,null,null,null,null,null,null,0]
[]
[]
[null,"10.  Опитувальник для майбутніх грантерів"]
[]
[1,"Чи витратила ваша організація понад 750 000,00 доларів федеральної фінансової допомоги від Федерального уряду США (гранти, угоди про співпрацю, нагороди про допомогу) у попередньому фінансовому році?",null,null,null,null,"Виберіть варіант"]
[]
[]
[2,"Чи отримувала ваша установа раніше або зараз отримує кошти федеральної фінансової допомоги США за останні три роки?",null,null,null,null,"Виберіть варіант"]
[]
[3,"Протягом останніх трьох років чи отримувала ваша установа раніше або зараз отримує кошти від будь-яких інших міжнародних донорів?",null,null,null,null,"Виберіть варіант"]
[]
[4,"Протягом останніх трьох років ваша установа раніше отримувала або отримує зараз грант від CRDF Global?",null,null,null,null,"Виберіть варіант"]
[]
[5,"Чи реалізувала ваша організація проєкти/гранти, подібні до обсягу роботи, запропонованого в цій заявці?",null,null,null,null,"Виберіть варіант"]
[]
[6,"Чи всі цілі та завдання проекту були досягнуті, а всі заходи повністю реалізовані в рамках раніше реалізованих грантів?",null,null,null,null,"Виберіть варіант"]
[]
[7,"Чи коли-небудь у вашій організації припинявся грант або контракт із певних причини?",null,null,null,null,"Виберіть варіант"]
[]
[8,"Чи складають запропоновані грантові кошти більше 10% операційних коштів грантоотримувача?",null,null,null,null,"Виберіть варіант"]
[]
[9,"Яким був максимальний бюджет єдиного гранту, який раніше отримувала та впроваджувала ваша організація за останні три роки?",null,null,null,null,0]
[]
[10,"Чи є спеціальний відділ або посада, відповідальна за введення фінансових даних гранту в систему бухгалтерського обліку?",null,null,null,null,"Виберіть варіант"]
[]
[11,"Чи використовує ваша організація систему обліку робочого часу для відстеження витраченого часу за індивідуальними грантами?",null,null,null,null,"Виберіть варіант"]
[]
[12,"Чи є спеціальний відділ або посада, відповідальна за адміністрування та документообіг за  грантовою угодою?",null,null,null,null,"Виберіть варіант"]
[]
[13,"Чи є у вашій організації співробітники, які складають команду проєкту та виконують грантову угоду? (ні – якщо цих працівників потрібно найняти спеціально для цього проєкту)",null,null,null,null,"Виберіть варіант"]
[]
[14,"Чи має уповноважений підписант вашої організації відповідну довіреність або будь-який еквівалентний документ чи повноваження, що підтверджує таке право підпису?",null,null,null,null,"Виберіть варіант"]
[]
[15,"Чи має ваша організація політику етики?",null,null,null,null,"Виберіть варіант"]
[]
[16,"Чи є в організації політики з бухгалтерського обліку або фінансів, у яких описано процедури затвердження витрат?",null,null,null,null,"Виберіть варіант"]
[]
[17,"Чи використовує установа систему бухгалтерського обліку для окремого відстеження донорських коштів і витрат?",null,null,null,null,"Виберіть варіант"]
[]
[18,"Чи має ваша організація досвід отримання грантового фінансування на банківський рахунок організації із-за кордону?",null,null,null,null,"Виберіть варіант"]
[]
[19,"Чи може ваша організація надати витяги, щоб підтвердити витрати, понесені за грантовою угодою?",null,null,null,null,"Виберіть варіант"]
[]
[20,"Чи проходила ваша організація аудити за останні 3 роки?",null,null,null,null,"Виберіть варіант"]

{"sheet":"Опис Проєктної Заявки","index":2,"n_rows":40,"n_cols":1,"rows_kept":40,"cut":false,"hidden":false,"merged":[[37,0,37,8],[39,0,39,8],[16,0,16,8],[17,0,17,8],[19,0,19,8],[21,0,21,8],[24,0,24,8],[36,0,36,8],[22,0,22,8],[27,0,27,8],[31,0,31,8],[26,0,26,8],[29,0,29,8],[34,0,34,8],[32,0,32,8],[13,0,13,8],[5,0,5,8],[7,0,7,8],[4,0,4,8],[0,3,0,5],[1,0,1,8],[11,0,11,8],[10,0,10,8]]}
[]
["Опис Проєктної Заявки"]
[]
[]
["Опис Проблеми "]
["Будь ласка, додайте короткий опис проблеми, з якою ви зіткнулися, і того, як вона впливає на вас.\nОбов’язково надайте інформацію про вразливість до потенційних кіберзагроз та/або кіберінцидентів. Також вкажіть потенційні прогалини у кібербезпеці, які ви плануєте покрити протягом періоду до дев’яти (9) місяців."]
[]
["[внесіть  інформацію сюди]"]
[]
[]
["Обсяг роботи (опис завдань для виконання) "]
["Надайте загальний опис завдань для Експертів, якого буде залучено в проєкт, для вирішення конкретних проблемних питань організації (зазначте, яких саме). Будь ласка, окремо пропишіть вимоги до кожного експерта."]
[]
["[внесіть  інформацію сюди]"]
[]
[]
["Стійкість проєкту"]
["Як запропонована проєктна діяльність може сприяти покращенню систем кібербезпеки грантера в подальшому?"]
[]
["[внесіть  інформацію сюди]"]
[]
["[specify section's name here]"]
["[Provide specific instructions for Grantees]"]
[]
["[enter here]"]
[]
["[specify section's name here]"]
["[Provide specific instructions for Grantees]"]
[]
["[enter here]"]
[]
["[specify section's name here]"]
["[Provide specific instructions for Grantees]"]
[]
["[enter here]"]
[]
["[specify section's name here]"]
["[Provide specific instructions for Grantees]"]
[]
["[enter here]"]

{"sheet":"A. Обсяг роботи (опис завдань д","index":3,"n_rows":127,"n_cols":19,"rows_kept":127,"cut":false,"hidden":false,"merged":[[9,0,9,1],[9,2,9,8],[126,0,126,8],[5,2,5,8],[4,2,4,8],[117,0,117,8],[118,0,118,8],[120,0,120,8],[122,0,122,8],[124,0,124,8],[104,0,104,8],[108,0,108,8],[111,0,111,1],[111,2,111,8],[113,0,113,8],[93,0,93,1],[93,2,93,8],[95,0,95,8],[99,0,99,8],[102,0,102,1],[102,2,102,8],[78,0,78,8],[81,0,81,1],[81,2,81,8],[83,0,83,8],[87,0,87,8],[65,0,65,8],[69,0,69,8],[72,0,72,1],[72,2,72,8],[74,0,74,8],[54,0,54,1],[54,2,54,8],[56,0,56,8],[60,0,60,8],[63,0,63,1],[63,2,63,8],[42,0,42,8],[45,0,45,1],[45,2,45,8],[47,0,47,8],[51,0,51,8],[29,0,29,8],[33,0,33,8],[36,0,36,1],[36,2,36,8],[38,0,38,8],[7,0,7,1],[3,9,3,17],[3,2,3,8],[25,0,25,8],[27,0,27,1],[27,2,27,8],[14,0,14,8],[11,0,11,8],[12,0,12,8],[16,0,16,8],[18,0,18,1],[18,2,18,8],[20,0,22,1],[20,2,20,8],[21,2,21,8],[22,2,22,8],[0,3,0,5],[1,0,1,8],[3,0,3,1],[4,0,4,1],[5,0,5,1]]}
[null,null,null,"ДОДАТОК A"]
["Обсяг роботи (опис завдань для виконання)"]
[]
["Назва проєкту",null,"[внесіть інформацію сюди]",null,null,null,null,null,null,null,null,null,null,null,null,null,null,null,{"$f":"C4","v":"[внесіть інформацію сюди]"}]
["Грантоотримувач",null,"[внесіть інформацію сюди]"]
["Тривалість проєкту",null,"[внесіть інформацію сюди]",null,null,null,null,null,null,null,null,null,null,null,null,null,null,null,{"$f":"C6","v":"[внесіть інформацію сюди]"}]
[]
["Відповідальний виконавець (проєктний координатор)",null,"[внесіть інформацію сюди]"]
[]
["Біоетика",null,"             Дослідження з залученням людей\n             Дослідження з залученням тварин\n             Рекомбінантна ДНК"]
[]
["1. Опис проєкту"]
["Будь ласка, додайте короткий опис проєкту, у якому коротко пояснюється, чому виконується робота, що проєкт має на меті досягнути, а також будь-яка загальна інформація про заплановані заходи та очікувані результати."]
[]
["[внесіть  інформацію сюди]"]
[]
["2. Ціль проєкту та завдання"]
[]
["Ціль проєкту:",null,"[внесіть  інформацію сюди]"]
[]
["Завдання проєкту:",null,"1) [внесіть  інформацію сюди]"]
[null,null,"2) [внесіть  інформацію сюди]"]
[null,null,"3) [внесіть  інформацію сюди]"]
[]
[]
["3. Активності проєкту та очікувані результати"]
[]
["Контрольний етап 1",null,"[внесіть описову  інформацію сюди]",null,null,null,null,null,null,null,null,null,null,null,null,null,null,null,{"$f":"C28","v":"[внесіть описову  інформацію сюди]"}]
[]
["[внесіть описову  інформацію сюди]"]
[]
["Результати:"]
[]
["1) [внесіть описову  інформацію сюди]\n2) [внесіть описову  інформацію сюди]\n3) [внесіть описову  інформацію сюди]"]
[]
[]
["Контрольний етап 2",null,"[внесіть  інформацію про назву контрольного етапу]",null,null,null,null,null,null,null,null,null,null,null,null,null,null,null,{"$f":"C37","v":"[внесіть  інформацію про назву контрольного етапу]"}]
[]
["[внесіть описову  інформацію сюди]"]
[]
["Результати:"]
[]
["1) [внесіть описову  інформацію сюди]\n2) [внесіть описову  інформацію сюди]\n3) [внесіть описову  інформацію сюди]"]
[]
[]
["Контрольний етап 3",null,"[внесіть  інформацію про назву контрольного етапу]",null,null,null,null,null,null,null,null,null,null,null,null,null,null,null,{"$f":"C46","v":"[внесіть  інформацію про назву контрольного етапу]"}]
[]
["[внесіть описову  інформацію сюди]"]
[]
["Результати:"]
[]
["1) [внесіть описову  інформацію сюди]\n2) [внесіть описову  інформацію сюди]\n3) [внесіть описову  інформацію сюди]"]
[]
[]
["Контрольний етап 4",null,"[внесіть  інформацію про назву контрольного етапу]",null,null,null,null,null,null,null,null,null,null,null,null,null,null,null,{"$f":"C55","v":"[внесіть  інформацію про назву контрольного етапу]"}]
[]
["[внесіть описову  інформацію сюди]"]
[]
["Результати:"]
[]
["1) [внесіть описову  інформацію сюди]\n2) [внесіть описову  інформацію сюди]\n3) [внесіть описову  інформацію сюди]"]
[]
[]
["Контрольний етап 5",null,"[внесіть  інформацію про назву контрольного етапу]",null,null,null,null,null,null,null,null,null,null,null,null,null,null,null,{"$f":"C64","v":"[внесіть  інформацію про назву контрольного етапу]"}]
[]
["[внесіть описову  інформацію сюди]"]
[]
["Результати:"]
[]
["1) [внесіть описову  інформацію сюди]\n2) [внесіть описову  інформацію сюди]\n3) [внесіть описову  інформацію сюди]"]
[]
[]
["Контрольний етап 6",null,"[внесіть  інформацію про назву контрольного етапу]",null,null,null,null,null,null,null,null,null,null,null,null,null,null,null,{"$f":"C73","v":"[внесіть  інформацію про назву контрольного етапу]"}]
[]
["[внесіть описову  інформацію сюди]"]
[]
["Результати:"]
[]
["1) [внесіть описову  інформацію сюди]\n2) [внесіть описову  інформацію сюди]\n3) [внесіть описову  інформацію сюди]"]
[]
[]
["Контрольний етап 7",null,"[внесіть  інформацію про назву контрольного етапу]",null,null,null,null,null,null,null,null,null,null,null,null,null,null,null,{"$f":"C82","v":"[внесіть  інформацію про назву контрольного етапу]"}]
[]
["[внесіть описову  інформацію сюди]"]
[]
["Результати:"]
[]
["1) [внесіть описову  інформацію сюди]\n2) [внесіть описову  інформацію сюди]\n3) [внесіть описову  інформацію сюди]"]
[]
[]
[]
[]
[]
["Контрольний етап 8",null,"[внесіть  інформацію про назву контрольного етапу]",null,null,null,null,null,null,null,null,null,null,null,null,null,null,null,{"$f":"C94","v":"[внесіть  інформацію про назву контрольного етапу]"}]
[]
["[внесіть описову  інформацію сюди]"]
[]
["Результати:"]
[]
["1) [внесіть описову  інформацію сюди]\n2) [внесіть описову  інформацію сюди]\n3) [внесіть описову  інформацію сюди]"]
[]
[]
["Контрольний етап 9",null,"[внесіть  інформацію про назву контрольного етапу]",null,null,null,null,null,null,null,null,null,null,null,null,null,null,null,{"$f":"C103","v":"[внесіть  інформацію про назву контрольного етапу]"}]
[]
["[внесіть описову  інформацію сюди]"]
[]
["Результати:"]
[]
["1) [внесіть описову  інформацію сюди]\n2) [внесіть описову  інформацію сюди]\n3) [внесіть описову  інформацію сюди]"]
[]
[]
["Контрольний етап 10",null,"[внесіть  інформацію про назву контрольного етапу]",null,null,null,null,null,null,null,null,null,null,null,null,null,null,null,{"$f":"C112","v":"[внесіть  інформацію про назву контрольного етапу]"}]
[]
["[внесіть описову  інформацію сюди]"]
[]
["Результати:"]
[]
["1) [внесіть описову  інформацію сюди]\n2) [внесіть описову  інформацію сюди]\n3) [внесіть описову  інформацію сюди]"]
["4. Інша актуальна інформація"]
[]
["1) [будь ласка, додайте будь-яку інформацію, що стосується проєкту]"]
[]
["2) [будь ласка, додайте будь-яку інформацію, що стосується проєкту]"]
[]
["3) [будь ласка, додайте будь-яку інформацію, що стосується проєкту]"]
[]
["4) [будь ласка, додайте будь-яку інформацію, що стосується проєкту]"]

{"sheet":"B. Робочий план","index":4,"n_rows":16,"n_cols":30,"rows_kept":16,"cut":false,"hidden":false,"merged":[[13,1,13,5],[14,1,14,5],[15,1,15,5],[1,0,1,29],[0,5,0,19],[6,1,6,5],[7,1,7,5],[8,1,8,5],[9,1,9,5],[10,1,10,5],[11,1,11,5],[12,1,12,5],[3,0,3,4],[3,5,3,18]]}
[null,null,null,null,null,"ДОДАТОК B"]
["РОБОЧИЙ ПЛАН "]
[]
["Тривалість проєкту",null,null,null,null,{"$f":"'A. Обсяг роботи (опис завдань д'!S6","v":"[внесіть інформацію сюди]"}]
[]
[null,null,null,null,null,null,1,2,3,4,5,6,7,8,9,10,11,12,13,14,15,16,17,18,19,20,21,22,23,24]
["Контрольний етап 1",{"$f":"'A. Обсяг роботи (опис завдань д'!S28","v":"[внесіть описову  інформацію сюди]"}]
["Контрольний етап 2",{"$f":"'A. Обсяг роботи (опис завдань д'!S37","v":"[внесіть  інформацію про назву контрольного етапу]"}]
["Контрольний етап 3",{"$f":"'A. Обсяг роботи (опис завдань д'!S46","v":"[внесіть  інформацію про назву контрольного етапу]"}]
["Контрольний етап 4",{"$f":"'A. Обсяг роботи (опис завдань д'!S55","v":"[внесіть  інформацію про назву контрольного етапу]"}]
["Контрольний етап 5",{"$f":"'A. Обсяг роботи (опис завдань д'!S64","v":"[внесіть  інформацію про назву контрольного етапу]"}]
["Контрольний етап 6",{"$f":"'A. Обсяг роботи (опис завдань д'!S73","v":"[внесіть  інформацію про назву контрольного етапу]"}]
["Контрольний етап 7",{"$f":"'A. Обсяг роботи (опис завдань д'!S82","v":"[внесіть  інформацію про назву контрольного етапу]"}]
["Контрольний етап 8",{"$f":"'A. Обсяг роботи (опис завдань д'!S94","v":"[внесіть  інформацію про назву контрольного етапу]"}]
["Контрольний етап 9",{"$f":"'A. Обсяг роботи (опис завдань д'!S103","v":"[внесіть  інформацію про назву контрольного етапу]"}]
["Контрольний етап 10",{"$f":"'A. Обсяг роботи (опис завдань д'!S112","v":"[внесіть  інформацію про назву контрольного етапу]"}]

{"sheet":"C. Бюджет","index":5,"n_rows":119,"n_cols":10,"rows_kept":119,"cut":false,"hidden":false,"merged":[[44,2,44,6],[43,2,43,6],[42,2,42,6],[119,0,119,10],[114,8,114,9],[116,8,116,9],[118,8,118,9],[105,2,105,8],[111,2,111,10],[113,0,113,10],[107,8,107,9],[108,8,108,9],[110,8,110,9],[106,2,106,8],[104,2,104,8],[103,2,103,8],[32,2,32,6],[31,2,31,6],[47,2,47,6],[83,4,83,5],[10,4,10,5],[15,2,15,3],[14,2,14,3],[13,2,13,3],[12,2,12,3],[11,2,11,3],[78,4,78,5],[79,4,79,5],[80,4,80,5],[81,4,81,5],[82,4,82,5],[45,2,45,6],[102,2,102,8],[87,2,87,6],[89,2,89,6],[88,2,88,6],[93,2,93,6],[94,2,94,6],[101,2,101,8],[48,2,48,6],[25,2,25,6],[46,2,46,6],[75,4,75,5],[76,2,76,8],[74,4,74,5],[73,4,73,5],[72,4,72,5],[30,2,30,6],[29,2,29,6],[28,2,28,6],[27,2,27,6],[26,2,26,6],[52,2,52,8],[34,2,34,6],[33,2,33,6],[0,3,0,7],[71,4,71,5],[64,2,64,8],[2,3,2,9],[70,4,70,5],[63,2,63,6],[58,2,58,3],[59,2,59,6],[62,2,62,6],[61,2,61,6],[60,2,60,6],[51,2,51,6],[50,2,50,6],[2,1,2,2],[9,4,9,9],[49,2,49,6],[11,4,11,5],[12,4,12,5],[13,4,13,5],[14,4,14,5],[15,4,15,5]]}
[null,null,null,"Додаток C"]
[]
[null,"Назва проєкту",null,{"$f":"'A. Обсяг роботи (опис завдань д'!S4","v":"[внесіть інформацію сюди]"}]
[]
[]
[null,"A","Заробітна плата працівників проєкту"]
[]
[]
[null,"A","Labor"]
[null,null,null,null,{"$f":"IF(C10=\"Level of Effort\",\"Please enter Fringe and LOE as numbers, they will be calculated as percentages\",\" \")","v":" "}]
[null,null,"Name",null,"Title",null,"Project Position","# of Hours","Please select","Total"]
[null,1,null,null,null,null,null,0,0,{"$f":"H12*I12","v":0}]
[null,2,null,null,null,null,null,0,0,{"$f":"H13*I13","v":0}]
[null,3,null,null,null,null,null,0,0,0]
[null,4,null,null,null,null,null,0,0,0]
[null,5,null,null,null,null,null,0,0,0]
[null,null,"Subtotal - Labor",null,null,null,null,null,null,{"$f":"SUM(J12:J16)","v":0}]
[]
[]
[null,"B","Equipment, Supplies, Services & Other direct costs"]
[]
[]
[null,"B1","Equipment"]
[]
[null,null,"Item Description",null,null,null,null,"# of units","Unit cost","Total"]
[null,1,null,null,null,null,null,0,0,{"$f":"H26*I26","v":0}]
[null,2,null,null,null,null,null,0,0,0]
[null,3,null,null,null,null,null,0,0,0]
[null,4,null,null,null,null,null,0,0,0]
[null,5,null,null,null,null,null,0,0,0]
[null,6,null,null,null,null,null,0,0,0]
[null,7,null,null,null,null,null,0,0,0]
[null,8,null,null,null,null,null,0,0,0]
[null,9,null,null,null,null,null,0,0,0]
[null,10,null,null,null,null,null,0,0,0]
[null,null,"Subtotal - Equipment",null,null,null,null,null,null,{"$f":"SUM(J26:J35)","v":0}]
[]
[]
[]
[null,"B2","Supplies"]
[]
[null,null,"Item Description",null,null,null,null,"# of units","Unit cost","Total"]
[null,1,null,null,null,null,null,0,0,{"$f":"H43*I43","v":0}]
[null,2,null,null,null,null,null,0,0,0]
[null,3,null,null,null,null,null,0,0,0]
[null,4,null,null,null,null,null,0,0,0]
[null,5,null,null,null,null,null,0,0,0]
[null,6,null,null,null,null,null,0,0,0]
[null,7,null,null,null,null,null,0,0,0]
[null,8,null,null,null,null,null,0,0,0]
[null,9,null,null,null,null,null,0,0,0]
[null,10,null,null,null,null,null,0,0,0]
[null,null,"Subtotal - Supplies",null,null,null,null,null,null,{"$f":"SUM(J43:J52)","v":0}]
[]
[]
[]
[null,"B3","Послуги та інші прямі витрати"]
[]
[null,null,"Опис прямих витрат",null,null,null,null,"# місяців","Вартість за місяць ","Всього"]
[null,1,null,null,null,null,null,0,0,{"$f":"H60*I60","v":0}]
[null,2,null,null,null,null,null,0,0,{"$f":"H61*I61","v":0}]
[null,3,null,null,null,null,null,0,0,{"$f":"H62*I62","v":0}]
[null,4,null,null,null,null,null,0,0,{"$f":"H63*I63","v":0}]
[null,5,null,null,null,null,null,0,0,{"$f":"H64*I64","v":0}]
[null,null,"Всього за розділом - Сервіси та інші прямі витрати",null,null,null,null,null,null,{"$f":"SUM(J60:J64)","v":0}]
[]
[]
[null,"C","Подорожі"]
[]
[null,null,"Подорожі"]
[null,null,"Вид транспорту","Країна виїзду","Країна прибуття",null,"Загальна вартість подорожі в два боки","#  подорожуючих","# поїздок","Всього"]
[null,1,"Потяг",null,null,null,0,0,0,{"$f":"G72*H72*I72","v":0}]
[null,2,"Літак",null,null,null,0,0,0,{"$f":"G73*H73*I73","v":0}]
[null,3,"Таксі",null,null,null,0,0,0,{"$f":"G74*H74*I74","v":0}]
[null,4,"[будь ласка, оберіть]",null,null,null,0,0,0,{"$f":"G75*H75*I75","v":0}]
[null,5,"[будь ласка, оберіть]",null,null,null,0,0,0,{"$f":"G76*H76*I76","v":0}]
[null,null,"Всього за розділом - Подорожі",null,null,null,null,null,null,{"$f":"SUM(J72:J76)","v":0}]
[null,null,"Добові"]
[null,null,"Місто відрядженя, країна","Харчування та непередбачені витрати","# днів відрядження, включно з транспортуванням ",null,"Вартість проживання","# ночей","# подорожуючих","Всього"]
[null,1,null,0,0,null,0,0,0,{"$f":"((D80*E80)+(G80*H80)-(D80/2))*I80","v":0}]
[null,null,"Місто відрядженя, країна","Харчування та непередбачені витрати","# днів відрядження, включно з транспортуванням ",null,"Вартість проживання","# ночей","# подорожуючих","Всього"]
[null,2,null,0,0,null,0,0,0,{"$f":"((D82*E82)+(G82*H82)-(D82/2))*I82","v":0}]
[null,null,"Місто відрядженя, країна","Харчування та непередбачені витрати","# днів відрядження, включно з транспортуванням ",null,"Вартість проживання","# ночей","# подорожуючих","Всього"]
[null,3,null,0,0,null,0,0,0,{"$f":"((D84*E84)+(G84*H84)-(D84/2))*I84","v":0}]
[null,null,"Всього за розділом - Добові",null,null,null,null,null,null,{"$f":"J80+J82+J84","v":0}]
[null,null,"Інше"]
[null,null,"Опис",null,null,null,null,"Вартість/тариф","# одиниць","Всього"]
[null,1,"Приклад: парковка",null,null,null,null,0,0,{"$f":"H88*I88","v":0}]
[null,2,"Приклад: віза",null,null,null,null,0,0,{"$f":"H89*I89","v":0}]
[null,3,null,null,null,null,null,0,0,{"$f":"H90*I90","v":0}]
[null,null,"Всього за розділом - Інше",null,null,null,null,null,null,{"$f":"SUM(J88:J90)","v":0}]
[null,null,"Реєстрація"]
[null,null,"Опис",null,null,null,null,"Тариф/комісія","# одиниць","Всього"]
[null,1,null,null,null,null,null,0,0,{"$f":"H94*I94","v":0}]
[null,2,null,null,null,null,null,0,0,{"$f":"H95*I95","v":0}]
[null,null,"Всього за розділом - Реєстрація",null,null,null,null,null,null,{"$f":"SUM(J94:J95)","v":0}]
[]
[]
[null,null,"Підсумок бюджету"]
[]
[null,null,"Прямі витрати"]
[null,"A","Оплата праці",null,null,null,null,null,null,{"$f":"J17","v":0}]
[null,"B1","Обладнання",null,null,null,null,null,null,{"$f":"J36","v":0}]
[null,"B2&B3","Приладдя, витратні матеріали, сервіси та інші прямі витрати",null,null,null,null,null,null,{"$f":"J53+J65","v":0}]
[null,"C","Подорожі",null,null,null,null,null,null,{"$f":"J96+J91+J85+J77","v":0}]
[]
[]
[null,null,"Всього прямих витрат",null,null,null,null,null,{"$f":"SUM(J102:J107)","v":0}]
[null,null,"Змінені загальні прямі витрати",null,null,null,null,null,{"$f":"I108-J103","v":0}]
[null,null," % непрямої ставки",null,null,null,null,0,null,{"$f":"H110","v":0}]
[null,null,"Непрямі витрати",null,null,null,null,null,{"$f":"I109*J110","v":0}]
[]
[]
[]
[null,"Всього за розділом- Прямі витрати",null,null,null,null,null,null,{"$f":"J102+J103+J104+J105","v":0}]
[]
[null,"Всього за розділом - Непрямі витрати",null,null,null,null,null,null,{"$f":"I111","v":0}]
[]
[null,"Загальна вартість проєкту",null,null,null,null,null,null,{"$f":"I115+I117","v":0}]

{"sheet":"D. Опис бюджету","index":6,"n_rows":293,"n_cols":12,"rows_kept":293,"cut":false,"hidden":false,"merged":[[292,3,295,9],[281,4,281,9],[291,3,291,9],[273,4,273,9],[276,3,276,9],[277,4,277,9],[280,3,280,9],[265,4,265,9],[268,3,268,9],[269,4,269,9],[272,3,272,9],[267,4,267,9],[271,4,271,9],[275,4,275,9],[279,4,279,9],[283,4,283,9],[257,4,257,9],[260,3,260,9],[261,4,261,9],[264,3,264,9],[245,4,245,9],[247,4,247,9],[248,3,248,9],[249,4,249,9],[251,4,251,9],[256,3,256,9],[259,4,259,9],[263,4,263,9],[237,4,237,9],[240,3,240,9],[241,4,241,9],[243,4,243,9],[244,3,244,9],[236,3,236,9],[205,4,205,9],[228,3,228,9],[229,4,229,9],[232,3,232,9],[233,4,233,9],[207,4,207,9],[213,4,213,9],[239,4,239,9],[235,4,235,9],[231,4,231,9],[215,4,215,9],[219,4,219,9],[223,4,223,9],[227,4,227,9],[217,4,217,9],[221,4,221,9],[225,4,225,9],[197,4,197,9],[200,3,200,9],[201,4,201,9],[204,3,204,9],[189,4,189,9],[192,3,192,9],[193,4,193,9],[196,3,196,9],[181,4,181,9],[184,3,184,9],[185,4,185,9],[188,3,188,9],[187,4,187,9],[191,4,191,9],[195,4,195,9],[199,4,199,9],[203,4,203,9],[167,4,167,9],[171,3,171,9],[172,4,172,9],[180,3,180,9],[158,4,158,9],[161,3,161,9],[162,4,162,9],[166,3,166,9],[150,4,150,9],[153,3,153,9],[154,4,154,9],[157,3,157,9],[152,4,152,9],[156,4,156,9],[160,4,160,9],[165,4,165,9],[170,4,170,9],[173,4,173,9],[138,4,138,9],[145,3,145,9],[146,4,146,9],[149,3,149,9],[128,4,128,9],[132,3,132,9],[133,4,133,9],[137,3,137,9],[120,4,120,9],[123,3,123,9],[124,4,124,9],[127,3,127,9],[148,4,148,9],[112,4,112,9],[115,3,115,9],[116,4,116,9],[119,3,119,9],[98,4,98,9],[102,3,102,9],[103,4,103,9],[105,4,105,9],[111,3,111,9],[101,4,101,9],[89,4,89,9],[92,3,92,9],[93,4,93,9],[97,3,97,9],[81,4,81,9],[84,3,84,9],[85,4,85,9],[88,3,88,9],[67,4,67,9],[76,3,76,9],[77,4,77,9],[80,3,80,9],[96,4,96,9],[91,4,91,9],[87,4,87,9],[83,4,83,9],[79,4,79,9],[70,4,70,9],[57,4,57,9],[61,3,61,9],[62,4,62,9],[66,3,66,9],[49,4,49,9],[52,3,52,9],[53,4,53,9],[56,3,56,9],[41,4,41,9],[44,3,44,9],[45,4,45,9],[48,3,48,9],[51,4,51,9],[47,4,47,9],[43,4,43,9],[55,4,55,9],[60,4,60,9],[65,4,65,9],[31,4,31,9],[40,3,40,9],[22,3,22,9],[23,4,23,9],[26,3,26,9],[11,4,11,9],[14,3,14,9],[15,4,15,9],[18,3,18,9],[0,4,0,6],[1,1,1,10],[2,3,2,5],[6,3,6,9],[7,4,7,9],[10,3,10,9],[19,4,19,9],[27,4,27,9],[30,3,30,9]]}
[null,null,null,null,"Додаток D"]
[null,"Опис Бюджету"]
[]
[]
[null,null,null,"A. Заробітна плата працівників проєкту"]
[]
[null,null,1,"[внесіть ПІБ]"]
[null,null,null,"Роль у проєкті","[внесіть описову інформацію сюда]"]
[]
[]
[null,null,2,"[внесіть ПІБ]"]
[null,null,null,"Роль у проєкті","[внесіть описову інформацію сюда]"]
[]
[]
[null,null,3,"[внесіть ПІБ]"]
[null,null,null,"Роль у проєкті","[внесіть описову інформацію сюда]"]
[]
[null,null,null,null,null,null,null,null,null,null,null,"Please, unhide rows between 18-35 if more space for Labor is needed."]
[null,null,4,"[внесіть ПІБ]"]
[null,null,null,"Роль у проєкті","[внесіть описову інформацію сюда]"]
[]
[]
[null,null,5,"[внесіть ПІБ]"]
[null,null,null,"Роль у проєкті","[внесіть описову інформацію сюда]"]
[]
[]
[null,null,6,"[внесіть ПІБ]"]
[null,null,null,"Роль у проєкті","[внесіть описову інформацію сюда]"]
[]
[]
[null,null,7,"[внесіть ПІБ]"]
[null,null,null,"Роль у проєкті","[внесіть описову інформацію сюда]"]
[]
[]
[]
[]
[]
[]
[null,null,null,"B. Обладнання,приладдя, витратні матеріали, сервіси та інші прямі витрати"]
[null,null,null,"Обладнання"]
[null,null,1,"[внесіть сюди назву обладнання]"]
[null,null,null,"Призначення","[внесіть описову інформацію сюди]"]
[]
[null,null,null,"Приклади цін на наявних ресурсах","[внесіть  інформацію сюди]"]
[null,null,2,"[внесіть сюди назву обладнання]"]
[null,null,null,"Призначення","[внесіть описову інформацію сюди]"]
[]
[null,null,null,"Приклади цін на наявних ресурсах","[внесіть  інформацію сюди]"]
[null,null,3,"[внесіть сюди назву обладнання]"]
[null,null,null,"Призначення","[внесіть описову інформацію сюди]"]
[]
[null,null,null,"Приклади цін на наявних ресурсах","[внесіть  інформацію сюди]",null,null,null,null,null,null,"Please, unhide rows between 52-71 if more space for Equipment is needed."]
[null,null,4,"[внесіть сюди назву обладнання]"]
[null,null,null,"Призначення","[внесіть описову інформацію сюди]"]
[]
[null,null,null,"Приклади цін на наявних ресурсах","[внесіть  інформацію сюди]"]
[null,null,5,"[внесіть сюди назву обладнання]"]
[null,null,null,"Призначення","[внесіть описову інформацію сюди]"]
[]
[]
[null,null,null,"Приклади цін на наявних ресурсах","[внесіть  інформацію сюди]"]
[null,null,6,"[внесіть сюди назву обладнання]"]
[null,null,null,"Призначення","[внесіть описову інформацію сюди]"]
[]
[]
[null,null,null,"Приклади цін на наявних ресурсах","[внесіть  інформацію сюди]"]
[null,null,7,"[внесіть сюди назву обладнання]"]
[null,null,null,"Призначення","[внесіть описову інформацію сюди]"]
[]
[]
[null,null,null,"Приклади цін на наявних ресурсах","[внесіть  інформацію сюди]"]
[]
[]
[]
[]
[null,null,null,"Приладдя, витратні матеріали"]
[null,null,1,"[внесіть сюди назву приладдя та/або витратних матеріалів]"]
[null,null,null,"Призначення","[внесіть описову інформацію сюди]"]
[]
[null,null,null,"Приклади цін на наявних ресурсах","[внесіть  інформацію сюди]"]
[null,null,2,"[внесіть сюди назву приладдя та/або витратних матеріалів]"]
[null,null,null,"Призначення","[внесіть описову інформацію сюди]"]
[]
[null,null,null,"Приклади цін на наявних ресурсах","[внесіть  інформацію сюди]"]
[null,null,3,"[внесіть сюди назву приладдя та/або витратних матеріалів]"]
[null,null,null,"Призначення","[внесіть описову інформацію сюди]"]
[]
[null,null,null,"Приклади цін на наявних ресурсах","[внесіть  інформацію сюди]",null,null,null,null,null,null,"Please, unhide rows between 88-107 if more space for Supplies is needed."]
[null,null,4,"[внесіть сюди назву приладдя та/або витратних матеріалів]"]
[null,null,null,"Призначення","[внесіть описову інформацію сюди]"]
[]
[null,null,null,"Приклади цін на наявних ресурсах","[внесіть  інформацію сюди]"]
[null,null,5,"[внесіть сюди назву приладдя та/або витратних матеріалів]"]
[null,null,null,"Призначення","[внесіть описову інформацію сюди]"]
[]
[]
[null,null,null,"Приклади цін на наявних ресурсах","[внесіть  інформацію сюди]"]
[null,null,6,"[внесіть сюди назву приладдя та/або витратних матеріалів]"]
[null,null,null,"Призначення","[внесіть описову інформацію сюди]"]
[]
[]
[null,null,null,"Приклади цін на наявних ресурсах","[внесіть  інформацію сюди]"]
[null,null,7,"[внесіть сюди назву приладдя та/або витратних матеріалів]"]
[null,null,null,"Призначення","[внесіть описову інформацію сюди]"]
[]
[null,null,null,"Приклади цін на наявних ресурсах","[внесіть  інформацію сюди]"]
[]
[]
[]
[]
[null,null,null,"Послуги"]
[null,null,1,"[внесіть сюди назву послуги]"]
[null,null,null,"Призначення","[внесіть описову інформацію сюди]"]
[]
[]
[null,null,2,"[внесіть сюди назву послуги]"]
[null,null,null,"Призначення","[внесіть описову інформацію сюди]"]
[]
[]
[null,null,3,"[внесіть сюди назву послуги]"]
[null,null,null,"Призначення","[внесіть описову інформацію сюди]"]
[]
[null,null,null,null,null,null,null,null,null,null,null,"Будь ласка, розгорніть ряди  123-141, якщо вам потрібно більше місця для заповнення інформації."]
[null,null,4,"[внесіть сюди назву сервісу]"]
[null,null,null,"Призначення","[внесіть описову інформацію сюди]"]
[]
[]
[null,null,5,"[внесіть сюди назву сервісу]"]
[null,null,null,"Призначення","[внесіть описову інформацію сюди]"]
[]
[]
[]
[null,null,6,"[внесіть сюди назву сервісу]"]
[null,null,null,"Призначення","[внесіть описову інформацію сюди]"]
[]
[]
[]
[null,null,7,"[внесіть сюди назву сервісу]"]
[null,null,null,"Призначення","[внесіть описову інформацію сюди]"]
[]
[]
[]
[]
[]
[null,null,null,"Інші прямі витрати"]
[null,null,1,"[внесіть сюда назву витрати]"]
[null,null,null,"Призначення","[внесіть описову інформацію сюди]"]
[]
[null,null,null,"Приклади цін на наявних ресурсах","[внесіть  інформацію сюди]"]
[null,null,2,"[внесіть сюда назву витрати]"]
[null,null,null,"Призначення","[внесіть описову інформацію сюди]"]
[]
[null,null,null,"Приклади цін на наявних ресурсах","[внесіть  інформацію сюди]"]
[null,null,3,"[внесіть сюда назву витрати]"]
[null,null,null,"Призначення","[внесіть описову інформацію сюди]"]
[]
[null,null,null,"Приклади цін на наявних ресурсах","[внесіть  інформацію сюди]"]
[null,null,4,"[внесіть сюда назву витрати]"]
[null,null,null,"Призначення","[внесіть описову інформацію сюди]"]
[]
[null,null,null,"Приклади цін на наявних ресурсах","[внесіть  інформацію сюди]"]
[null,null,5,"[внесіть сюда назву витрати]"]
[null,null,null,"Purpose ","[enter here]"]
[]
[]
[null,null,null,"Приклади цін на наявних ресурсах","[внесіть  інформацію сюди]"]
[null,null,6,"[внесіть сюда назву витрати]"]
[null,null,null,"Призначення","[внесіть описову інформацію сюди]"]
[]
[]
[null,null,null,"Приклади цін на наявних ресурсах","[внесіть  інформацію сюди]"]
[null,null,7,"[внесіть сюда назву витрати]"]
[null,null,null,"Призначення","[внесіть описову інформацію сюди]"]
[null,null,null,"Приклади цін на наявних ресурсах","[внесіть  інформацію сюди]"]
[null,null,null,null,null,null,null,null,null,null,null,"Please, unhide rows between 158-174 if more space for Other Direct Costs is needed."]
[]
[]
[]
[null,null,null,"C. Подорожі"]
[]
[null,null,1,"[Відбуття (місто, країна) - Прибуття ( місто, країна)]"]
[null,null,null,"Призначення","[внесіть описову інформацію сюди]"]
[]
[]
[null,null,2,"[Відбуття (місто, країна) - Прибуття ( місто, країна)]"]
[null,null,null,"Призначення","[внесіть описову інформацію сюди]"]
[]
[null,null,null,"Приклади цін на наявних ресурсах","[внесіть  інформацію сюди]"]
[null,null,3,"[Відбуття (місто, країна) - Прибуття ( місто, країна)]"]
[null,null,null,"Призначення","[внесіть описову інформацію сюди]"]
[]
[null,null,null,"Приклади цін на наявних ресурсах","[внесіть  інформацію сюди]"]
[null,null,4,"[Відбуття (місто, країна) - Прибуття ( місто, країна)]"]
[null,null,null,"Призначення","[внесіть описову інформацію сюди]"]
[]
[null,null,null,"Приклади цін на наявних ресурсах","[внесіть  інформацію сюди]"]
[null,null,5,"[Відбуття (місто, країна) - Прибуття ( місто, країна)]"]
[null,null,null,"Призначення","[внесіть описову інформацію сюди]"]
[]
[null,null,null,"Приклади цін на наявних ресурсах","[внесіть  інформацію сюди]"]
[null,null,6,"[Відбуття (місто, країна) - Прибуття ( місто, країна)]"]
[null,null,null,"Призначення","[внесіть описову інформацію сюди]"]
[]
[null,null,null,"Приклади цін на наявних ресурсах","[внесіть  інформацію сюди]"]
[null,null,7,"[Відбуття (місто, країна) - Прибуття ( місто, країна)]"]
[null,null,null,"Призначення","[внесіть описову інформацію сюди]"]
[]
[null,null,null,"Приклади цін на наявних ресурсах","[внесіть  інформацію сюди]"]
[null,null,null,null,null,null,null,null,null,null,null,"Please, unhide rows between 192-208 if more space for Travel is needed."]
[]
[]
[null,null,null,"Добові /Вартість  проживання "]
[null,null,1,"[внесіть назву країни прибуття ]"]
[null,null,null,"Місце проживання","[внесіть  інформацію сюди]"]
[]
[null,null,null,"Приклади цін на наявних ресурсах","[внесіть  інформацію сюди]"]
[null,null,2,"[внесіть назву країни прибуття ]"]
[null,null,null,"Місце проживання","[внесіть  інформацію сюди]"]
[]
[null,null,null,"Приклади цін на наявних ресурсах","[внесіть  інформацію сюди]"]
[null,null,3,"[внесіть назву країни прибуття ]"]
[null,null,null,"Місце проживання","[внесіть  інформацію сюди]"]
[]
[null,null,null,"Приклади цін на наявних ресурсах","[внесіть  інформацію сюди]"]
[null,null,4,"[внесіть назву країни прибуття ]"]
[null,null,null,"Місце проживання","[внесіть  інформацію сюди]"]
[]
[null,null,null,"Приклади цін на наявних ресурсах","[внесіть  інформацію сюди]"]
[null,null,5,"[внесіть назву країни прибуття ]"]
[null,null,null,"Місце проживання","[внесіть  інформацію сюди]"]
[]
[null,null,null,"Приклади цін на наявних ресурсах","[внесіть  інформацію сюди]"]
[null,null,6,"[внесіть назву країни прибуття ]"]
[null,null,null,"Місце проживання","[внесіть  інформацію сюди]"]
[]
[null,null,null,"Приклади цін на наявних ресурсах","[внесіть  інформацію сюди]"]
[null,null,7,"[внесіть назву країни прибуття ]"]
[null,null,null,"Місце проживання","[внесіть  інформацію сюди]"]
[]
[null,null,null,"Приклади цін на наявних ресурсах","[внесіть  інформацію сюди]"]
[null,null,5,"[внесіть назву країни прибуття ]"]
[null,null,null,"Місце проживання","[внесіть  інформацію сюди]"]
[]
[null,null,null,"Приклади цін на наявних ресурсах","[внесіть  інформацію сюди]"]
[null,null,6,"[внесіть назву країни прибуття ]"]
[null,null,null,"Місце проживання","[внесіть  інформацію сюди]"]
[]
[null,null,null,"Приклади цін на наявних ресурсах","[внесіть  інформацію сюди]"]
[null,null,7,"[внесіть назву країни прибуття ]"]
[null,null,null,"Місце проживання","[внесіть  інформацію сюди]"]
[]
[null,null,null,"Приклади цін на наявних ресурсах","[внесіть  інформацію сюди]"]
[null,null,null,null,null,null,null,null,null,null,null,"Please, unhide rows between 224-253 if more space for Miscellaneous is needed."]
[]
[]
[null,null,null,"Реєстрації"]
[null,null,1,"[внесіть назву реєстрації]"]
[null,null,null,"Призначення","[внесіть описову інформацію сюди]"]
[]
[null,null,null,"Приклади цін на наявних ресурсах","[внесіть  інформацію сюди]"]
[null,null,2,"[внесіть назву реєстрації]"]
[null,null,null,"Призначення","[внесіть описову інформацію сюди]"]
[]
[null,null,null,"Приклади цін на наявних ресурсах","[внесіть  інформацію сюди]"]
[null,null,3,"[внесіть назву реєстрації]"]
[null,null,null,"Призначення","[внесіть описову інформацію сюди]"]
[]
[null,null,null,"Приклади цін на наявних ресурсах","[внесіть  інформацію сюди]"]
[null,null,4,"[внесіть назву реєстрації]"]
[null,null,null,"Призначення","[внесіть описову інформацію сюди]"]
[]
[null,null,null,"Приклади цін на наявних ресурсах","[внесіть  інформацію сюди]"]
[null,null,5,"[внесіть назву реєстрації]"]
[null,null,null,"Призначення","[внесіть описову інформацію сюди]"]
[]
[null,null,null,"Приклади цін на наявних ресурсах","[внесіть  інформацію сюди]"]
[null,null,6,"[внесіть назву реєстрації]"]
[null,null,null,"Призначення","[внесіть описову інформацію сюди]"]
[]
[null,null,null,"Приклади цін на наявних ресурсах","[внесіть  інформацію сюди]"]
[null,null,7,"[внесіть назву реєстрації]"]
[null,null,null,"Призначення","[внесіть описову інформацію сюди]"]
[]
[null,null,null,"Приклади цін на наявних ресурсах","[внесіть  інформацію сюди]"]
[null,null,null,null,null,null,null,null,null,null,null,"Please, unhide rows between 268-285 if more space for Registrations is needed."]
[]
[]
[]
[]
[null,null,null,"Непрямі витрати"]
[]
[null,null,null,"Будь ласка, вкажіть документ, який визначає відповідну непряму витрату"]
[null,null,null," [внесіть описову інформацію сюди]"]

{"sheet":"E. Графік платежів та звітності","index":7,"n_rows":37,"n_cols":28,"rows_kept":37,"cut":false,"hidden":true,"merged":[[30,6,30,7],[30,4,30,5],[28,4,28,5],[27,6,28,7],[0,4,0,10],[27,1,27,3],[29,1,29,2],[29,4,29,5],[29,6,29,7],[1,1,1,28],[3,1,3,3],[21,1,21,3],[29,8,29,9],[28,8,28,9]]}
[null,null,null,null,"Додаток E"]
[null,"Графік платежів та звітності"]
[]
[null,"Планування витрат"]
[null,"Витрата","Аванс","Місяць 1","Місяць 2","Місяць 3","Місяць 4","Місяць 5","Місяць 6","Місяць 7","Місяць 8","Місяць 9","Місяць 10","Місяць 11","Місяць 12","Month13","Month14","Month15","Month16","Month17","Month18","Month19","Month20","Month21","Month22","Month23","Month24","Всьго"]
[null,"Оплата праці",0,0,0,0,0,0,0,0,0,0,0,0,0,0,0,0,0,0,0,0,0,0,0,0,0,{"$f":"SUM(D6:AA6)","v":0}]
[null,"Обладнання",0,0,0,0,0,0,0,0,0,0,0,0,0,0,0,0,0,0,0,0,0,0,0,0,0,{"$f":"SUM(D7:AA7)","v":0}]
[null,"Приладдя, витратні матеріали",0,0,0,0,0,0,0,0,0,0,0,0,0,0,0,0,0,0,0,0,0,0,0,0,0,{"$f":"SUM(D8:AA8)","v":0}]
[null,"Сервіси та інші прямі витрати ",0,0,0,0,0,0,0,0,0,0,0,0,0,0,0,0,0,0,0,0,0,0,0,0,0,0]
[null,"Подорожі",0,0,0,0,0,0,0,0,0,0,0,0,0,0,0,0,0,0,0,0,0,0,0,0,0,0]
[null,"Непрямі витрати",0,0,0,0,0,0,0,0,0,0,0,0,0,null,null,null,null,null,null,null,null,null,null,null,null,0]
[null,"Всього",{"$f":"SUM(C6:C11)","v":0},{"$f":"SUM(D6:D11)","v":0},{"$f":"SUM(E6:E11)","v":0},{"$f":"SUM(F6:F11)+D12+E12","v":0},0,0,{"$f":"SUM(I6:I11)+G12+H12","v":0},0,0,{"$f":"SUM(L6:L11)+J12+K12","v":0},0,0,{"$f":"SUM(O6:O11)+M12+N12","v":0},{"$f":"SUM(P6:P10)","v":0},0,0,0,0,0,0,0,0,0,0,0,{"$f":"SUM(AB6:AB11)","v":0}]
[]
[]
[null,null,"Payment","Duration"]
[null,"Advance",0]
[null,"Milestone 1",0,"1-1"]
[null,"Milestone 2",0,"2-4"]
[null,"Milestone 3",0,"5-9"]
[null,"Milestone 4",0,"9-12"]
[]
[null,"Графік звітності "]
[null,"Тип звіту",null,"Місяць 1","Місяць 2","Місяць 3","Місяць 4","Місяць 5","Місяць 6","Місяць 7","Місяць 8","Місяць 9","Місяць 10","Місяць 11","Місяць 12"]
[null,"Технічний звіт по прогресу",null,null,null,"2023-11-12"]
[null,"Фінансовий звіт / Рахунки",null,null,null,"2023-11-12"]
[]
[null,"Project dates: Jan 1- 2024- Dec 31, 2024,"]
[null,"Milestones Budget and Reporting Schedule",null,null,null,null,"Techniccal report"]
[null,"Milestones #",null,"Budget","Finanacial report",null,null,null,"Reporting period"]
[null,"Milestone1",null,150000,"2024-04-15",null,"2024-04-15",null,"Jan 1-March 30, 2024"]
[null,"Milestone2",null,58200,"2024-07-15",null,"2024-07-15",null,"April 1-June 30, 2024"]
[null,"Milestone 3",null,1500]
[null,"Total ",null,{"$f":"SUM(D30:D32)","v":209700}]
[null,null,null,null,null,null,null,null,"15/7"]
[null,null,null,null,null,null,null,"5days GO","20/7"]
[]
[null,null,null,null,null,null,null,"AP","31/7"]

{"sheet":"F. NIH Standard TCs","index":8,"n_rows":115,"n_cols":19,"rows_kept":115,"cut":false,"hidden":true,"merged":[[11,0,11,8],[0,3,0,5],[1,0,1,8],[3,9,3,17],[36,0,36,8],[7,0,7,8],[8,0,8,8],[9,0,9,8],[10,0,10,8],[12,0,12,8],[2,0,2,8],[3,0,3,8],[4,0,4,8],[5,0,5,8],[6,0,6,8],[13,0,13,8],[74,0,74,8],[75,0,75,8],[59,0,59,8],[63,0,63,8],[62,0,62,8],[65,0,65,8],[66,0,66,8],[68,0,68,8],[72,0,72,8],[69,0,69,8],[71,0,71,8],[14,0,14,8],[20,0,20,8],[32,0,32,8],[15,0,15,8],[16,0,16,8],[17,0,17,8],[18,0,18,8],[19,0,19,8],[22,0,22,8],[25,0,25,8],[26,0,26,8],[28,0,28,8],[56,0,56,8],[45,0,45,8],[23,0,23,8],[31,0,31,8],[34,0,34,8],[42,0,42,8],[57,0,57,8],[29,0,29,8],[60,0,60,8],[35,0,35,8],[40,0,40,8],[44,0,44,8],[47,0,47,8],[48,0,48,8],[50,0,50,8],[41,0,41,8],[39,0,39,8],[38,0,38,8],[37,0,37,8],[51,0,51,8],[53,0,53,8],[54,0,54,8]]}
[null,null,null,"ATTACHMENT F"]
["STANDARD TERMS AND CONDITIONS"]
["1. Statutory Requirements: "]
["Grantee agrees to comply with all applicable requirements of 2 CFR 200 (Prime Grants or Cooperative Agreements)  "]
["https://www.ecfr.gov/current/title-2/subtitle-A/chapter-II/part-200?toc=1 "]
[]
["2. Federal Agency Requirements: "]
["Grantee agrees that all activities performed under this Agreement will comply with the Research Terms and Conditions established by the National Science Foundation.   "]
["https://www.nsf.gov/awards/managing/award_conditions.jsp?org=NSF"]
[]
["3. Purpose:"]
["Funds provided under this Agreement shall be used solely for the objectives outlined herein and in accordance with Grantee’s proposal to the National Institutes of Health (NIH), hereby incorporated by reference. "]
[]
["4. Personnel:"]
["The Principal Investigator (PI) is responsible for overseeing the technical work to be performed under this Agreement and for submission of all required Technical Reports. The Principal Investigator may not be replaced without the prior written notice to, and subsequent approval of, CRDF Global. "]
[]
["5. Reporting & Performance:"]
["Grantee shall submit technical and financial reports in accordance with the schedule set forth herein and in such detail and format as requested by CRDF Global.  Grantee is expected to make best efforts to accomplish the technical objectives in accordance with the established milestones and schedule and to report to CRDF Global any circumstances that may result in significant delays. CRDF Global will monitor Grantee technical and financial progress and may request additional information from the Grantee during the course of the project. Grantee agrees to cooperate with all such reasonable requests. "]
[]
["6. Record-Keeping & Access:"]
["Grantee shall maintain detailed financial and other records related to this Agreement, including records associated with any subawards issued by the Grantee hereunder, and shall retain such records for a period of no less than three (3) years from the expiration date of this Agreement.   Grantee agrees to provide timely, unrestricted access to such records throughout the duration of the grant period and for the three-year retention period. Grantee further agrees to provide CRDF Global or its authorized representatives access to Grantee’s facilities and personnel performing work under this Agreement.  Grantee shall ensure similar provisions are incorporated into any subaward issued hereunder. "]
[]
["7. Liability:"]
["Neither Party shall be liable to the other for any claim related to their performance of this agreement, except for claims arising from negligent or intentional tortious conduct. "]
[]
["8. Suspension & Termination:",null,null,null,null,null,null,null,null,null,null,null,null,null,null,null,null,null,{"$f":"C26","v":0}]
["Either Party may terminate this Agreement for convenience at any time by providing thirty (30) days written notice to the other Party.  In the event of such suspension or termination, the Grantee will submit claim for final eligible costs with fifteen (15) days of the date of termination. \nCRDF Global may suspend this Agreement at any time and for any reason by providing fifteen (15) written notice to the Grantee.   "]
[]
["9. Force Majeure:"]
["Neither Party shall be liable for any failure to perform its obligations under this Agreement, if such failure results from any Acts of God, pandemics, Acts of War, riot, civil unrest, flood, earthquake or other similar cause beyond such party’s reasonable control (including any sustained mechanical, electronic or communications failure, but excluding failure caused by a party’s financial condition or negligence). A party experiencing a Force Majeure circumstance shall notify the other Party, in writing, as soon as possible describing the situation and its impact on the performance of this Agreement."]
[]
["10. Disputes:"]
["In the event of any disagreement regarding performance under or interpretation of this Agreement, the Parties shall use their best efforts to reach a negotiated resolution that is equitable and mutually satisfactory. Until final resolution of any dispute, the Grantee shall diligently proceed with the performance of this Agreement as directed by CRDF Global. Nothing contained in this Agreement or in any other document related hereto is intended to or shall have the effect of requiring either party to consider, resort to participate in, or abide by any arbitration process or mechanism, or any device or arrangement of a nature or intent similar to arbitration."]
[]
["11. Compliance:",null,null,null,null,null,null,null,null,null,null,null,null,null,null,null,null,null,{"$f":"C35","v":0}]
["Grantee agrees to observe and conform to, in all material respects, all laws, rules, regulations, codes, orders and requirements of governmental authorities relating to this Agreement, and certifies that it is in compliance with and will comply in the course of the period of performance with other generally applicable requirements, including, but not limited to, those relating to corporate operations, taxation, employment and the environment. \n\nThe Grantee further understands and certifies to the following: "]
["a. Suspension & Debarment: Neither Grantee nor any individual Project Personnel are presently debarred, suspended, proposed for debarment, declared ineligible, or voluntarily excluded from participation in this Agreement by any U.S. Government department or agency or any international organization. "]
["b. Prohibition Against Lobbying: That funds provided under this Agreement or will be paid, by or on behalf of the Grantee, to any person for influencing or attempting to influence an officer or employee of a federal agency, a Member of Congress, and officer or employee of Congress, or an employee of a Member of Congress in connection with the awarding, issuance, extension, modification, or renewal of any Federal contract, grant, loan, or other transaction. "]
["c. Combatting Terrorism: As a material condition of receiving the Agreement, Grantee accepts the obligation to take all reasonable steps to prevent financing or any other form of material support being provided to terrorists, individuals, and entities that provide support or services to, are owned, or controlled by, act for or on behalf of, or are otherwise associated with terrorists. With prejudice to the generality of the foregoing, Grantee agrees to ensure that it does not engage in any transaction with or otherwise provide any financing or other material support to an individual or entity on the Specially Designated National (SDN) list issued by the Office of Foreign Assets Control of the US Treasury Department. "]
["d. Prohibition Against Human Trafficking: During the Agreement Period, Grantee certifies that it will not engage in human trafficking, procure a commercial sex act, or use forced labor in performance of the Agreement. Grantee further agrees to ensure that its employees and subgrantees observe the same requirement, and to disclose any information or allegations of violations that come to its attention; failure to comply with this requirement may result in unilateral termination of the Agreement by CRDF Global without penalty or further payment. "]
["e. Nondiscrimination: As applicable, Grantee will comply with Executive Order 11246, as amended (Equal Employment Opportunity); Section 503 of the Rehabilitation Act of 1973; the Vietnam Era Veterans Readjustment Act of 1974, 38 U.S.C. § 4212; the Jobs for Veterans Act of 2002, and Executive Order 13496, and all implementing regulations, including but not limited to 41 CFR §§ 60-1.4, 60-300.5, 60-741.5. This Agreement is subject to the provisions of Title VI of the Civil Rights Act of 1964 [42 U.S.C. § 2000d], Title IX of the Education Amendments of 1972 [20 USC § 1681 et seq.], the Rehabilitation Act of 1973 [29 U.S.C. § 794], the Age Discrimination Act of 1975 [42 U.S.C. § 6101 et seq], and all regulations and policies issued pursuant to these statutes. Specifically, in accordance with these statutes, regulations, and policies, no person based on race, color, national origin, sex, disability, or age shall be excluded from participation in, be denied the benefits of, or otherwise be subjected to discrimination under this Agreement. "]
["f. Prohibition on Certain Telecommunications and Video Surveillance Services or Equipment: Grantee will abide by the restrictions set forth in 2 CFR § 200.216, also defined in Public Law 115-232, section 889 "]
["g. Bioethics:  For research projects involving human and/or animal subjects or recombinant or synthetic nucleic acid molecules, Grantee agrees to comply with all U.S. and national laws and regulations associated with the conduct of such research. "]
[]
["12. Relationship and Authority:"]
["The Parties are separate organizations operating independently in connection with the Agreement. Neither Party has the authority to create obligations on behalf of the other. Each shall make this fact clear to all third parties with which it deals.    \nGrantee certifies that it possesses the legal authority to enter into this Agreement, and that is has satisfied all requirements of its governing body authorizing the acceptance of this award including all understandings and assurances contained therein directing and authorizing the person identified as the official representative of the Grantee to act in connection with the Agreement. "]
[]
["13. Integrity & Ethics:"]
["At all times during the Agreement Period, Grantee shall adhere to the highest standards of integrity and ethics. Without prejudice to the generality of the foregoing, Grantee shall ensure that it has not provided or offered, and will not provide or offer, any corrupt, prohibited, unethical or even unseemly payment or other benefit directly or indirectly to CRDF Global, any government official(s), or any agent or representative of either of the foregoing. \n\nGrantee further confirms that it has, and will maintain throughout the duration of this Agreement, a conflict-of-interest policy compliant with the provisions of 2 CFR 200. ",null,null,null,null,null,null,null,null,null,null,null,null,null,null,null,null,null,{"$f":"C49","v":0}]
[]
["14. Data Protection:"]
["Grantee acknowledges that it may be required to collect personal data for the purposes set forth in this Agreement. If Grantee collects personal data pursuant to this Agreement, Grantee will not store, copy, analyze, monitor, or otherwise use such personal data except for the purposes set forth in this Agreement and with the individual’s informed, prior consent. Grantee will comply fully with all applicable laws, regulations, and government orders relating to the personal data that Grantee receives, or has access to, under this Agreement. Grantee will otherwise protect personal data and will not use, disclose, or transfer the personal data across national borders, except as necessary to perform under this Agreement or as consented to by the individual in accordance with applicable law. Under no circumstances will Grantee sell, share, or otherwise exchange personal data collected pursuant to this Agreement for commercial purposes."]
[]
["15. Intellectual Property:"]
["For the purposes of this Agreement, the parties agree to the following: \n\n- CRDF Global makes no claim to any IP conceived or developed in the performance of this Agreement; \n\n- Grantee shall take all necessary steps to protect its pre-existing IP that may be used in the performance of this Agreement; \n\n- Grantee shall accept and flow down all federal government requirements; and \n\nAny IP conceived or developed in the performance of this Agreement shall be subject to the requirements of the Bayh-Dole Act, 35 U.S. C. §§ 200 et. seq., and implementing regulations, 37 CFR Part 401. "]
[]
["16. Publications: ",null,null,null,null,null,null,null,null,null,"Do we need Project indicators?"]
["All publications produced in performance of this Agreement must contain the following acknowledgment: “This publication is based on work supported by funding provided by the National Institutes of Health (NIH) and administered by CRDF Global. Any opinions, findings and conclusions or recommendations expressed in this material are those of the author(s) and do not necessarily reflect the views of NIH or CRDF Global.” Copies of publications based on or developed under this Agreement shall be provided to CRDF Global or its authorized representatives upon request.",null,null,null,null,null,null,null,null,null,null,null,null,null,null,null,null,null,{"$f":"C58","v":0}]
[]
["17. Assignment:"]
["Grantee may not assign, subcontract, grant, subgrant or otherwise transfer any rights (including, but not limited to, claims and rights to receive payment) or obligations under the Agreement to any other person or entity without prior, written approval from CRDF Global. "]
[]
["18. Travel:"]
["All travel funded under this Agreement shall be subject to the provision of the Fly America Act (49 U.S.C. 40018) and the provisions of 2 CFR 200."]
[]
["19. Invoicing & Payment:"]
["Grantee will submit invoices and financial reports in accordance with the schedule contained herein and containing such information, or in such format, as provided by CRDF Global. \n\nCRDF Global reserves the right to request additional documentation or information to conduct appropriate review of reported expenditures and to disallow any cost found to be unallowable or not in accordance with the approved Grant budget. \n\nIf Grantee becomes aware of an overpayment, an erroneous payment, or a duplicate payment, Grantee shall immediately notify CRDF Global in writing and request instructions for managing the matter. CRDF Global may deduct from any payment all or part of any amount, whether in connection with the Agreement or any other agreement, owed to it by Grantee.",null,null,null,null,null,null,null,null,null,null,null,null,null,null,null,null,null,{"$f":"C67","v":0}]
[]
["20. Modification & Amendment:"]
["The Agreement may only be modified by a written amendment signed by both Parties except in the following circumstances wherein CRDF Global may issue a unilateral modification or formal written approval: \n\na. Approval of a no-cost extension requested in writing by the Grantee. \nb. Administrative updates of the CRDF Global PO or GO. \nc. Budget reallocations among direct cost budget categories requested by the Grantee that are less than 10% of the total grant amount. "]
[]
["21. Severability:"]
["Any Agreement provision(s) determined by a court or other competent authority to contravene applicable law or mandatory public policy will be rendered void or unenforceable only to the extent of such contravention; remaining provisions shall continue in full force and effect and be construed to implement the Parties’ intent to the maximum extent practicable. "]
[]
["22. Issuance in Multiple Languages:"]
["For explanatory purposes or for the sake of clarification, this Agreement and associated documents may be translated into one or more languages other than English. In the event of the existence of such translations, the English-language version shall serve as the definitive version determining the interpretation of any provision contained herein. ",null,null,null,null,null,null,null,null,null,null,null,null,null,null,null,null,null,{"$f":"C76","v":0}]
[]
[]
[]
[]
[]
[]
[]
[]
[null,null,null,null,null,null,null,null,null,null,null,null,null,null,null,null,null,null,{"$f":"C85","v":0}]
[]
[]
[]
[]
[]
[]
[]
[]
[]
[]
[]
[null,null,null,null,null,null,null,null,null,null,null,null,null,null,null,null,null,null,{"$f":"C97","v":0}]
[]
[]
[]
[]
[]
[]
[]
[]
[null,null,null,null,null,null,null,null,null,null,null,null,null,null,null,null,null,null,{"$f":"C106","v":0}]
[]
[]
[]
[]
[]
[]
[]
[]
[null,null,null,null,null,null,null,null,null,null,null,null,null,null,null,null,null,null,{"$f":"C115","v":0}]

{"sheet":"Грантова Угода","index":9,"n_rows":71,"n_cols":7,"rows_kept":71,"cut":false,"hidden":true,"merged":[[52,1,52,2],[51,3,51,7],[49,1,49,2],[45,1,47,2],[48,3,48,7],[50,1,50,2],[49,3,49,7],[51,1,51,2],[50,3,50,7],[48,1,48,2],[43,1,44,2],[42,1,42,2],[42,3,42,7],[34,1,34,2],[34,3,34,7],[43,4,43,7],[44,4,44,7],[9,1,9,2],[40,1,40,2],[41,1,41,2],[41,3,41,7],[31,1,31,2],[31,3,31,7],[32,1,32,2],[32,3,32,7],[33,1,33,2],[33,3,33,7],[28,1,28,2],[29,1,29,2],[29,3,29,7],[30,1,30,2],[30,3,30,7],[24,1,24,2],[24,3,24,7],[25,1,25,2],[25,3,25,7],[26,1,26,2],[26,3,26,7],[20,3,20,7],[21,3,21,7],[22,1,22,2],[22,3,22,7],[23,1,23,2],[23,3,23,7],[17,1,17,2],[18,1,18,2],[19,1,19,2],[10,3,10,7],[11,3,11,7],[12,3,12,7],[13,3,13,7],[14,3,14,7],[16,3,16,7],[17,3,17,7],[18,3,18,7],[5,1,5,2],[5,3,5,7],[7,1,7,2],[7,3,7,7],[53,1,53,7],[19,3,19,7],[20,1,20,2],[21,1,21,2],[10,1,10,2],[11,1,11,2],[12,1,12,2],[13,1,13,2],[14,1,14,2],[15,1,15,2],[15,3,15,7],[16,1,16,2],[60,1,60,7],[64,1,64,2],[63,3,63,4],[63,5,63,7],[64,3,64,4],[64,5,64,7],[69,3,69,4],[69,5,69,7],[70,1,70,2],[70,3,70,4],[70,5,70,7]]}
[null,null,null,null,null,"ГРАНТОВА УГОДА"]
[]
[]
[]
[]
[null,"НОМЕР ГРАНТУ"]
[]
[null,"Назва проєкту",null,{"$f":"'A. Обсяг роботи (опис завдань д'!S4","v":"[внесіть інформацію сюди]"}]
[]
[null,"ІНФОРМАЦІЯ ПРО ГРАНТЕРА"]
[null,"Організація грантоотримувача",null,{"$f":"'Інформація про організацію'!R8","v":0}]
[null,"Адреса 1",null,{"$f":"'Інформація про організацію'!R11","v":0}]
[null,"Адреса 2",null,{"$f":"'Інформація про організацію'!R12","v":0}]
[null,"Місто",null,{"$f":"'Інформація про організацію'!R13","v":0}]
[null,"Країна грантера",null,{"$f":"'Інформація про організацію'!R16","v":"Ukraine"}]
[null,"Unique Entity Identifier ",null,{"$f":"'Інформація про організацію'!R34","v":0}]
[null,"Local registration number",null,{"$f":"'Інформація про організацію'!R35","v":0}]
[null,"Телефон грантоотримувача",null,{"$f":"'Інформація про організацію'!R19","v":0}]
[null,"Електронна грантоотримувача",null,{"$f":"'Інформація про організацію'!R22","v":0}]
[null,"ПІБ Відповідального Виконавця ",null,{"$f":"'Інформація про організацію'!R38","v":0}]
[null,"Посада Відповідального Виконавця ",null,{"$f":"'Інформація про організацію'!R39","v":0}]
[null,"Електронна пошта Відповідального Виконавця ",null,{"$f":"'Інформація про організацію'!R41","v":0}]
[null,"Телефон Відповідального Виконавця \n",null,{"$f":"'Інформація про організацію'!R40","v":0}]
[null,"ПІБ уповноваженого підписанта від організаці",null,{"$f":"'Інформація про організацію'!R44","v":0}]
[null,"Посада уповноваженого підписанта від організаці",null,{"$f":"'Інформація про організацію'!R45","v":0}]
[null,"Електронна пошта уповноваженого підписанта від організаці",null,{"$f":"'Інформація про організацію'!R46","v":0}]
[null,"Телефонний номер уповноваженого підписанта від організаці",null,{"$f":"'Інформація про організацію'!R47","v":0}]
[]
[null,"Інформація про CRDF GLOBAL "]
[null,"Адреса",null,"1776 Wilson Boulevard, Third Floor, Arlington, VA 22209"]
[null,"Unique Entity Identifier ",null,"MR7ZQXJSQKA5"]
[null,"ПІБ Грантового Офіцера"]
[null,"Grant Officer Title"]
[null,"Телефонний номер Грантового Офіцера"]
[null,"Електронна пошта Грантового Офіцера"]
[]
[]
[]
[]
[]
[null,"ІНФОРМАЦІЯ ПРО ГРАНТ"]
[null,"Період реалізації проєкту",null,{"$f":"'A. Обсяг роботи (опис завдань д'!S6","v":"[внесіть інформацію сюди]"}]
[null,"Максимальна сума гранту",null,{"$f":"'C. Бюджет'!W119","v":0}]
[null,"Тип договору",null,null,"Cost-reimbursable"]
[null,null,null,null,"Грант з фіксованною сумою"]
[null,"Payment Modality",null,null,"Аванс"]
[null,null,null,null,"Arrears"]
[null,null,null,null,"As per payment schedule"]
[null,"Payment Terms",null,"NET 30"]
[null,"Competition"]
[null,"Prime Agreement Number"]
[null,"Authorization"]
[null,"Special Terms and Conditions",null,null,"Yes",null,"No"]
[null,"Funding for this Grant has been provided by the National Institutes of Health via National Science Foundation Cooperative Agreement #"]
[null,"ДОДАТКИ:"]
[null,"A","Обсяг роботи (опис завдань для виконання)","E","Графік платежів та звітності"]
[null,"B","Робочий план","F","Standard Terms & Conditionds"]
[null,"C","Бюджет","G","Specify"]
[null,"D","Опис бюджету","H","Specify"]
[null,"EXECUTION"]
[null,"This Agreement is entered into by CRDF Global and [organization_name] (hereafter “Grantee”) for the purposes set forth in Attachment A: Scope of Work (SOW). This Grant Agreement (with all attachments, hereafter the \"Agreement\"), constitutes the complete understanding between CRDF Global and the Grantee and supplants all representations of the Parties, whether oral or written, made prior to the execution of this Agreement. No subsequent modification, extension, or amendment to any part of this Agreement will be valid unless in writing and signed both by CRDF Global and the Grantee. By signature of their authorized representatives below, CRDF Global and Grantee (hereafter the “Parties”) make and enter into this Agreement as of the date of CRDF Global execution."]
[null,"For",{"$f":"'Інформація про організацію'!R8","v":0}]
[]
[null,null,null,{"$f":"'Інформація про організацію'!R44","v":0},null,{"$f":"'Інформація про організацію'!R45","v":0}]
[null,"Підпис",null,"ПІБ",null,"Посада"]
[]
[]
[null,"For","CRDF Global"]
[]
[null,null,null,"Defrim Dedey",null,"Director of Grants"]
[null,"Підпис",null,"ПІБ",null,"Посада"]

{"sheet":"Tecnical","index":10,"n_rows":280,"n_cols":3,"rows_kept":280,"cut":false,"hidden":true,"merged":[]}
["Institutional Data Form",null,"Payment Terms"]
["Kerry McGowan",null,"NET 30"]
["Kevin Gates",null,"NET 15"]
["Fouzilla Sebbak",null,"NET 10"]
["Nadine Zabaneh"]
["Salman Al-Darbisi"]
["Sarah Haddad"]
["Huda AL-SHARIF"]
["Lyubov Taranenko"]
["Vitaliy Vysochin"]
["Yana Slyshchenko"]
["Dinmukhamed Zharylkassyn"]
["Svitlana Kutniuk"]
[]
[]
["Alabama"]
["Alaska"]
["Arizona"]
["Arkansas"]
["California"]
["Colorado"]
["Connecticut"]
["Delaware"]
["Florida"]
["Georgia"]
["Hawaii"]
["Idaho"]
["Illinois"]
["Indiana"]
["Iowa"]
["Kansas"]
["Kentucky"]
["Louisiana"]
["Maine"]
["Maryland"]
["Massachusetts"]
["Michigan"]
["Minnesota"]
["Mississippi"]
["Missouri"]
["Montana"]
["Nebraska"]
["Nevada"]
["New Hampshire"]
["New Jersey"]
["New Mexico"]
["New York"]
["North Carolina"]
["North Dakota"]
["Ohio"]
["Oklahoma"]
["Oregon"]
["Pennsylvania"]
["Rhode Island"]
["South Carolina"]
["South Dakota"]
["Tennessee"]
["Texas"]
["Utah"]
["Vermont"]
["Virginia"]
["Washington"]
["West Virginia"]
["Wisconsin"]
["Wyoming"]
[]
[]
[]
["Afghanistan"]
["Albania"]
["Algeria"]
["Andorra"]
["Angola"]
["Antigua and Barbuda"]
["Argentina"]
["Armenia"]
["Australia"]
["Austria"]
["Azerbaijan"]
["Bahamas"]
["Bahrain"]
["Bangladesh"]
["Barbados"]
["Belarus"]
["Belgium"]
["Belize"]
["Benin"]
["Bhutan"]
["Bolivia"]
["Bosnia and Herzegovina"]
["Botswana"]
["Brazil"]
["Brunei"]
["Bulgaria"]
["Burkina Faso"]
["Burundi"]
["Cabo Verde"]
["Cambodia"]
["Cameroon"]
["Canada"]
["Central African Republic"]
["Chad"]
["Chile"]
["China"]
["Colombia"]
["Comoros"]
["Congo, Democratic Republic of the"]
["Congo, Republic of the"]
["Costa Rica"]
["Cote d'Ivoire"]
["Croatia"]
["Cuba"]
["Cyprus"]
["Czechia"]
["Denmark"]
["Djibouti"]
["Dominica"]
["Dominican Republic"]
["Ecuador"]
["Egypt"]
["El Salvador"]
["Equatorial Guinea"]
["Eritrea"]
["Estonia"]
["Eswatini"]
["Ethiopia"]
["Fiji"]
["Finland"]
["France"]
["Gabon"]
["Gambia"]
["Georgia"]
["Germany"]
["Ghana"]
["Greece"]
["Grenada"]
["Guatemala"]
["Guinea"]
["Guinea-Bissau"]
["Guyana"]
["Haiti"]
["Honduras"]
["Hungary"]
["Iceland"]
["India"]
["Indonesia"]
["Iran"]
["Iraq"]
["Ireland"]
["Israel"]
["Italy"]
["Jamaica"]
["Japan"]
["Jordan"]
["Kazakhstan"]
["Kenya"]
["Kiribati"]
["Kosovo"]
["Kuwait"]
["Kyrgyzstan"]
["Laos"]
["Latvia"]
["Lebanon"]
["Lesotho"]
["Liberia"]
["Libya"]
["Liechtenstein"]
["Lithuania"]
["Luxembourg"]
["Madagascar"]
["Malawi"]
["Malaysia"]
["Maldives"]
["Mali"]
["Malta"]
["Marshall Islands"]
["Mauritania"]
["Mauritius"]
["Mexico"]
["Micronesia"]
["Moldova"]
["Monaco"]
["Mongolia"]
["Montenegro"]
["Morocco"]
["Mozambique"]
["Myanmar"]
["Namibia"]
["Nauru"]
["Nepal"]
["Netherlands"]
["New Zealand"]
["Nicaragua"]
["Niger"]
["Nigeria"]
["North Korea"]
["North Macedonia"]
["Norway"]
["Oman"]
["Pakistan"]
["Palau"]
["Palestine"]
["Panama"]
["Papua New Guinea"]
["Paraguay"]
["Peru"]
["Philippines"]
["Poland"]
["Portugal"]
["Qatar"]
["Romania"]
["Russia"]
["Rwanda"]
["Saint Kitts and Nevis"]
["Saint Lucia"]
["Saint Vincent and the Grenadines"]
["Samoa"]
["San Marino"]
["Sao Tome and Principe"]
["Saudi Arabia"]
["Senegal"]
["Serbia"]
["Seychelles"]
["Sierra Leone"]
["Singapore"]
["Slovakia"]
["Slovenia"]
["Solomon Islands"]
["Somalia"]
["South Africa"]
["South Korea"]
["South Sudan"]
["Spain"]
["Sri Lanka"]
["Sudan"]
["Suriname"]
["Sweden"]
["Switzerland"]
["Syria"]
["Taiwan"]
["Tajikistan"]
["Tanzania"]
["Thailand"]
["Timor-Leste"]
["Togo"]
["Tonga"]
["Trinidad and Tobago"]
["Tunisia"]
["Turkey"]
["Turkmenistan"]
["Tuvalu"]
["Uganda"]
["Ukraine"]
["United Arab Emirates (UAE)"]
["United Kingdom (UK)"]
["United States of America (USA)"]
["Uruguay"]
["Uzbekistan"]
["Vanuatu"]
["Vatican City (Holy See)"]
["Venezuela"]
["Vietnam"]
["Yemen"]
["Zambia"]
["Zimbabwe"]
[]
["Select an option"]
["Provided"]
["Not provided"]
[]
["Select an option","Виберіть варіант:"]
["University","Університет"]
["Corporation / Company","Корпорація / Компанія"]
["Government ","Державна Установа "]
["International Organization","Міжнародна Організація"]
["Other","Інше"]
[]
["Select an option","Виберіть варіант"]
["Yes","Так"]
["No","Ні"]

{"sheet":"Training","index":11,"n_rows":214,"n_cols":10,"rows_kept":214,"cut":false,"hidden":true,"merged":[[148,6,148,7],[149,6,149,7],[150,6,150,7],[151,6,151,7],[165,8,165,9],[144,8,144,9],[148,8,148,9],[149,8,149,9],[150,8,150,9],[151,8,151,9],[145,8,145,9],[155,8,155,9],[156,8,156,9],[162,8,162,9],[163,8,163,9],[157,8,157,9],[158,8,158,9],[159,8,159,9],[160,8,160,9],[161,8,161,9],[152,8,152,9],[153,8,153,9],[154,8,154,9],[164,8,164,9],[43,3,43,4],[1,2,1,9],[5,2,5,3],[5,4,5,9],[7,2,7,3],[7,4,7,9],[9,2,9,3],[9,4,9,9],[11,7,16,9],[39,3,39,4],[40,3,40,4],[41,3,41,4],[42,3,42,4],[147,8,147,9],[135,8,135,9],[136,8,136,9],[57,3,57,4],[44,3,44,4],[45,3,45,4],[46,3,46,4],[47,3,47,4],[48,3,48,4],[49,3,49,4],[52,3,52,4],[53,3,53,4],[54,3,54,4],[55,3,55,4],[56,3,56,4],[137,8,137,9],[129,6,132,9],[138,8,138,9],[139,8,139,9],[140,8,140,9],[141,8,141,9],[142,8,142,9],[143,8,143,9],[72,3,72,4],[73,3,73,4],[74,3,74,4],[75,3,75,4],[89,4,89,9],[71,3,71,4],[58,3,58,4],[59,3,59,4],[60,3,60,4],[61,3,61,4],[62,3,62,4],[65,3,65,4],[66,3,66,4],[67,3,67,4],[68,3,68,4],[69,3,69,4],[70,3,70,4],[181,3,181,4],[102,3,102,4],[103,3,103,4],[104,3,104,4],[105,3,105,4],[106,3,106,4],[107,3,107,4],[175,3,175,4],[176,3,176,4],[177,3,177,4],[178,3,178,4],[179,3,179,4],[180,3,180,4],[174,3,174,4],[113,4,113,9],[168,5,168,6],[168,7,168,8],[171,3,171,4],[172,3,172,4],[173,3,173,4],[167,5,167,6],[167,7,167,8],[127,4,127,5],[134,8,134,9]]}
[]
[null,null,"INSTRUCTIONS:\nPlease enter all eligible anticipated project costs in their respective sections below.  As you progress through the template there will be blue boxes on the right that offer guidance and, in some cases, forecasting should this project be selected to award. \n\nThere are multiple sections of the budget that ask \"is a vendor identified?\"  This question is asking if there is a vendor in mind for the specific line item at the time you fill out this budget.  You are not required to identify a vendor at this time.  Answering these questions with \"no\" does not in any way impact the merit of your project and will not affect the decision to award.\n\n"]
[null,null,null,"Training/Workshop"]
[]
[]
[null,null,"Course Title"]
[]
[null,null,"Proposed Location"]
[]
[null,null,"Proposed Dates (or # of days)"]
[]
[null,null,"Anticipated Staffing & Attendance",null,null,null,null,"\"Local\" is defined as anyone who regularly resides within [enter distance here] of the training/event location.  Local staff and attendees are not elligible to receive certain travel expenses."]
[null,null,null,null,"Local","Non-local","Total"]
[null,null,null,"Trainers/Speakers",null,null,{"$f":"SUM(E14:F14)","v":0}]
[null,null,null,"Administrative Staff",null,null,{"$f":"SUM(E15:F15)","v":0}]
[null,null,null,"Participants/Trainees",null,null,{"$f":"SUM(E16:F16)","v":0}]
[null,null,null,"Total",{"$f":"SUM(E14:E16)","v":0},{"$f":"SUM(F14:F16)","v":0},{"$f":"SUM(G14:G16)","v":0}]
[]
[]
[]
[null,null,null,"Trainer/Speaker/Staff Honorarium"]
[]
[null,null,null,"Name","Title","Project Role","Rate","Days",null,"Total"]
[null,null,1,null,null,null,null,null,null,{"$f":"G24*H24","v":0}]
[null,null,2,null,null,null,null,null,null,{"$f":"G25*H25","v":0}]
[null,null,3,null,null,null,null,null,null,0]
[null,null,4,null,null,null,null,null,null,0]
[null,null,5,null,null,null,null,null,null,0]
[null,null,6,null,null,null,null,null,null,0]
[null,null,7,null,null,null,null,null,null,0]
[null,null,8,null,null,null,null,null,null,0]
[null,null,9,null,null,null,null,null,null,0]
[null,null,10,null,null,null,null,null,null,0]
[null,null,null,"Subtotal - Honoraria",null,null,null,null,null,{"$f":"SUM(J24:J33)","v":0}]
[]
[]
[]
[null,null,null,"Workshop Preparation"]
[null,null,null,"Facilities & Equipment"]
[null,null,null,"Expense Description",null,"Is the vendor identified?","# of Days","# units/day","Rate/unit","Cost"]
[null,null,1,"Venue Reservation (ex. Training room)",null,null,null,null,null,{"$f":"G41*H41*I41","v":0}]
[null,null,2,"Venue Reservation (ex. Laboratory)",null,null,null,null,null,{"$f":"G42*H42*I42","v":0}]
[null,null,3,"Audio-Visual Equipment",null,null,null,null,null,{"$f":"G43*H43*I43","v":0}]
[null,null,4,"Hotel room block",null,null,null,null,null,{"$f":"G44*H44*I44","v":0}]
[null,null,5,null,null,null,null,null,null,0]
[null,null,6,null,null,null,null,null,null,0]
[null,null,7,null,null,null,null,null,null,0]
[null,null,8,null,null,null,null,null,null,0]
[null,null,9,null,null,null,null,null,null,0]
[null,null,10,null,null,null,null,null,null,0]
[null,null,null,"Subtotal - Facilities & Equipment",null,null,null,null,null,{"$f":"SUM(J41:J50)","v":0}]
[null,null,null,"Materials, Supplies, & Consumables"]
[null,null,null,"Expense Description",null,"Is the vendor identified?","# of People","# Units/Person","Rate/unit","Cost"]
[null,null,1,null,null,null,null,null,null,{"$f":"G54*H54*I54","v":0}]
[null,null,2,null,null,null,null,null,null,{"$f":"G55*H55*I55","v":0}]
[null,null,3,null,null,null,null,null,null,{"$f":"G56*H56*I56","v":0}]
[null,null,4,null,null,null,null,null,null,{"$f":"G57*H57*I57","v":0}]
[null,null,5,null,null,null,null,null,null,0]
[null,null,6,null,null,null,null,null,null,0]
[null,null,7,null,null,null,null,null,null,0]
[null,null,8,null,null,null,null,null,null,0]
[null,null,9,null,null,null,null,null,null,0]
[null,null,10,null,null,null,null,null,null,0]
[null,null,null,"Subtotal - Materials, Supplies, & Consumables",null,null,null,null,null,{"$f":"SUM(J54:J63)","v":0}]
[null,null,null,"Literature & Printing"]
[null,null,null,"Expense Description",null,"Is the vendor identified?","# of People","# Units/Person","Rate/unit","Cost"]
[null,null,1,"Handouts",null,null,null,null,null,{"$f":"G67*H67*I67","v":0}]
[null,null,2,"Certificates",null,null,null,null,null,{"$f":"G68*H68*I68","v":0}]
[null,null,3,"Name badges",null,null,null,null,null,{"$f":"G69*H69*I69","v":0}]
[null,null,4,"Binders",null,null,null,null,null,{"$f":"G70*H70*I70","v":0}]
[null,null,5,null,null,null,null,null,null,0]
[null,null,6,null,null,null,null,null,null,0]
[null,null,7,null,null,null,null,null,null,0]
[null,null,8,null,null,null,null,null,null,0]
[null,null,9,null,null,null,null,null,null,0]
[null,null,10,null,null,null,null,null,null,0]
[null,null,null,"Subtotal - Literature & Printing",null,null,null,null,null,{"$f":"SUM(J67:J76)","v":0}]
[null,null,null,"Catering"]
[null,null,null,"Meal","Is vendor identified?","# units per person, per day","Rate per unit","# people","# days","Cost"]
[null,null,1,"Lunch",null,null,null,null,null,{"$f":"F80*G80*H80*I80","v":0}]
[null,null,2,"Coffee Break",null,null,null,null,null,{"$f":"F81*G81*H81*I81","v":0}]
[null,null,3,"Networking Dinner",null,null,null,null,null,{"$f":"F82*G82*H82*I82","v":0}]
[null,null,4,null,null,null,null,null,null,0]
[null,null,5,null,null,null,null,null,null,0]
[null,null,null,"Subtotal - Catering",null,null,null,null,null,{"$f":"SUM(J80:J84)","v":0}]
[]
[]
[]
[null,null,null,"Local Travel"]
[null,null,null,"Transportation",{"$f":"IF(D92=\"Personal Vehicle\",\"*See References tab for mileage reimbursement resource\",IF(D94=\"Personal Vehicle\",\"*See References tab for mileage reimbursement resource\",IF(D96=\"Personal Vehicle\",\"*See References tab for mileage reimbursement resource\",IF(D98=\"Personal Vehicle\",\"*See References tab for mileage reimbursement resource\",IF(D100=\"Personal Vehicle\",\"*See References tab for mileage reimbursement resource\",\" \")))))","v":" "}]
[null,null,null,"Mode of Ground Transport",{"$f":"VLOOKUP(D92,#REF!,2,FALSE)","v":{"$error":"#REF!"}},{"$f":"VLOOKUP(D92,#REF!, 3,FALSE)","v":{"$error":"#REF!"}},{"$f":"VLOOKUP(D92,#REF!, 4, FALSE)","v":{"$error":"#REF!"}},{"$f":"VLOOKUP(D92,#REF!, 5, FALSE)","v":{"$error":"#REF!"}},{"$f":"VLOOKUP(D92,#REF!, 6, FALSE)","v":{"$error":"#REF!"}},"Cost"]
[null,null,1,"[please choose]",null,null,null,null,null,{"$f":"G92*H92*I92","v":0}]
[null,null,null,null,{"$f":"VLOOKUP(D94,#REF!, 2, FALSE)","v":{"$error":"#REF!"}},{"$f":"VLOOKUP(D94,#REF!, 3, FALSE)","v":{"$error":"#REF!"}},{"$f":"VLOOKUP(D94,#REF!, 4, FALSE)","v":{"$error":"#REF!"}},{"$f":"VLOOKUP(D94,#REF!, 5, FALSE)","v":{"$error":"#REF!"}},{"$f":"VLOOKUP(D94,#REF!, 6, FALSE)","v":{"$error":"#REF!"}},"Cost"]
[null,null,2,"[please choose]",null,null,null,null,null,{"$f":"G94*H94*I94","v":0}]
[null,null,null,null,{"$f":"VLOOKUP(D96,#REF!, 2, FALSE)","v":{"$error":"#REF!"}},{"$f":"VLOOKUP(D96,#REF!, 3, FALSE)","v":{"$error":"#REF!"}},{"$f":"VLOOKUP(D96,#REF!, 4, FALSE)","v":{"$error":"#REF!"}},{"$f":"VLOOKUP(D96,#REF!, 5, FALSE)","v":{"$error":"#REF!"}},{"$f":"VLOOKUP(D96,#REF!, 6, FALSE)","v":{"$error":"#REF!"}},"Cost"]
[null,null,3,"[please choose]",null,null,null,null,null,{"$f":"G96*H96*I96","v":0}]
[null,null,null,null,{"$f":"VLOOKUP(D98,#REF!, 2, FALSE)","v":{"$error":"#REF!"}},{"$f":"VLOOKUP(D98,#REF!, 3, FALSE)","v":{"$error":"#REF!"}},{"$f":"VLOOKUP(D98,#REF!, 4, FALSE)","v":{"$error":"#REF!"}},{"$f":"VLOOKUP(D98,#REF!, 5, FALSE)","v":{"$error":"#REF!"}},{"$f":"VLOOKUP(D98,#REF!, 6, FALSE)","v":{"$error":"#REF!"}},"Cost"]
[null,null,4,"[please choose]",null,null,null,null,null,{"$f":"G98*H98*I98","v":0}]
[null,null,null,null,{"$f":"VLOOKUP(D100,#REF!, 2, FALSE)","v":{"$error":"#REF!"}},{"$f":"VLOOKUP(D100,#REF!, 3, FALSE)","v":{"$error":"#REF!"}},{"$f":"VLOOKUP(D100,#REF!, 4, FALSE)","v":{"$error":"#REF!"}},{"$f":"VLOOKUP(D100,#REF!, 5, FALSE)","v":{"$error":"#REF!"}},{"$f":"VLOOKUP(D100,#REF!, 6, FALSE)","v":{"$error":"#REF!"}},"Cost"]
[null,null,5,"[please choose]",null,null,null,null,null,{"$f":"G100*H100*I100","v":0}]
[null,null,null,"Subtotal - Transportation",null,null,null,null,null,{"$f":"SUM(J92,J94,J96,J98,J100)","v":0}]
[null,null,null,"Miscellaneous"]
[null,null,null,"Description",null,"Rate/Fee","# Units",null,null,"Total"]
[null,null,1,"Ex: Parking",null,null,null,null,null,{"$f":"F104*G104","v":0}]
[null,null,2,"Ex: Tolls",null,null,null,null,null,{"$f":"F105*G105","v":0}]
[null,null,3,null,null,null,null,null,null,{"$f":"F106*G106","v":0}]
[null,null,4,null,null,null,null,null,null,{"$f":"F107*G107","v":0}]
[null,null,5,null,null,null,null,null,null,{"$f":"F108*G108","v":0}]
[null,null,null,"Subtotal - Miscellaneous",null,null,null,null,null,{"$f":"SUM(J104:J108)","v":0}]
[]
[]
[]
[null,null,null,"Non-Local Travel"]
[null,null,null,"Transportation",{"$f":"IF(D116=\"Personal Vehicle\",\"*See References tab for mileage reimbursement resource\",IF(D118=\"Personal Vehicle\",\"*See References tab for mileage reimbursement resource\",IF(D120=\"Personal Vehicle\",\"*See References tab for mileage reimbursement resource\",IF(D122=\"Personal Vehicle\",\"*See References tab for mileage reimbursement resource\",IF(D124=\"Personal Vehicle\",\"*See References tab for mileage reimbursement resource\",\" \")))))","v":" "}]
[null,null,null,"Mode of Transport",{"$f":"VLOOKUP(D116,#REF!,2,FALSE)","v":{"$error":"#REF!"}},{"$f":"VLOOKUP(D116,#REF!, 3,FALSE)","v":{"$error":"#REF!"}},{"$f":"VLOOKUP(D116,#REF!, 4, FALSE)","v":{"$error":"#REF!"}},{"$f":"VLOOKUP(D116,#REF!, 5, FALSE)","v":{"$error":"#REF!"}},{"$f":"VLOOKUP(D116,#REF!, 6, FALSE)","v":{"$error":"#REF!"}},"Cost"]
[null,null,1,"[please choose]",null,null,null,null,null,{"$f":"G116*H116*I116","v":0}]
[null,null,null,null,{"$f":"VLOOKUP(D118,#REF!, 2, FALSE)","v":{"$error":"#REF!"}},{"$f":"VLOOKUP(D118,#REF!, 3, FALSE)","v":{"$error":"#REF!"}},{"$f":"VLOOKUP(D118,#REF!, 4, FALSE)","v":{"$error":"#REF!"}},{"$f":"VLOOKUP(D118,#REF!, 5, FALSE)","v":{"$error":"#REF!"}},{"$f":"VLOOKUP(D118,#REF!, 6, FALSE)","v":{"$error":"#REF!"}},"Cost"]
[null,null,2,"[please choose]",null,null,null,null,null,{"$f":"G118*H118*I118","v":0}]
[null,null,null,null,{"$f":"VLOOKUP(D120,#REF!, 2, FALSE)","v":{"$error":"#REF!"}},{"$f":"VLOOKUP(D120,#REF!, 3, FALSE)","v":{"$error":"#REF!"}},{"$f":"VLOOKUP(D120,#REF!, 4, FALSE)","v":{"$error":"#REF!"}},{"$f":"VLOOKUP(D120,#REF!, 5, FALSE)","v":{"$error":"#REF!"}},{"$f":"VLOOKUP(D120,#REF!, 6, FALSE)","v":{"$error":"#REF!"}},"Cost"]
[null,null,3,"[please choose]",null,null,null,null,null,{"$f":"G120*H120*I120","v":0}]
[null,null,null,null,{"$f":"VLOOKUP(D122,#REF!, 2, FALSE)","v":{"$error":"#REF!"}},{"$f":"VLOOKUP(D122,#REF!, 3, FALSE)","v":{"$error":"#REF!"}},{"$f":"VLOOKUP(D122,#REF!, 4, FALSE)","v":{"$error":"#REF!"}},{"$f":"VLOOKUP(D122,#REF!, 5, FALSE)","v":{"$error":"#REF!"}},{"$f":"VLOOKUP(D122,#REF!, 6, FALSE)","v":{"$error":"#REF!"}},"Cost"]
[null,null,4,"[please choose]",null,null,null,null,null,{"$f":"G122*H122*I122","v":0}]
[null,null,null,null,{"$f":"VLOOKUP(D124,#REF!, 2, FALSE)","v":{"$error":"#REF!"}},{"$f":"VLOOKUP(D124,#REF!, 3, FALSE)","v":{"$error":"#REF!"}},{"$f":"VLOOKUP(D124,#REF!, 4, FALSE)","v":{"$error":"#REF!"}},{"$f":"VLOOKUP(D124,#REF!, 5, FALSE)","v":{"$error":"#REF!"}},{"$f":"VLOOKUP(D124,#REF!, 6, FALSE)","v":{"$error":"#REF!"}},"Cost"]
[null,null,5,"[please choose]",null,null,null,null,null,{"$f":"G124*H124*I124","v":0}]
[null,null,null,"Subtotal - Transportation",null,null,null,null,null,{"$f":"SUM(J116,J118,J120,J122,J124)","v":0}]
[null,null,null,"Per Diem"]
[]
[null,null,null,"Destination City/State:"]
[]
[null,null,null,"M&IE Rate",null,null,"In order to receive per diem the traveler must be in travel status for more than 12 hours, and live more than 50miles/80km or a 90 minute commute from the destination."]
[]
[null,null,null,"Lodging Rate"]
[]
[null,null,null,"M&IE Allowances"]
[null,null,null,"Recipient Type","Origin City","Trip Duration (# of days)","# of Recipients","Rate","Total"]
[null,null,1,"[Please choose]",null,null,null,{"$f":"E130","v":0},{"$f":"((F136+1.5)*G136)*H136","v":0}]
[null,null,2,"[Please choose]",null,null,null,{"$f":"E130","v":0},{"$f":"((F137+1.5)*G137)*H137","v":0}]
[null,null,3,"[Please choose]",null,null,null,{"$f":"E130","v":0},{"$f":"((F138+1.5)*G138)*H138","v":0}]
[null,null,4,"[Please choose]",null,null,null,{"$f":"E130","v":0},0]
[null,null,5,"[Please choose]",null,null,null,{"$f":"E130","v":0},0]
[null,null,6,"[Please choose]",null,null,null,{"$f":"E130","v":0},0]
[null,null,7,"[Please choose]",null,null,null,{"$f":"E130","v":0},0]
[null,null,8,"[Please choose]",null,null,null,{"$f":"E130","v":0},0]
[null,null,9,"[Please choose]",null,null,null,{"$f":"E130","v":0},0]
[null,null,10,"[Please choose]",null,null,null,{"$f":"E130","v":0},0]
[null,null,null,"Subtotal - M&IE Allowances",null,null,{"$f":"SUM(G136:G145)","v":0},null,{"$f":"SUM(I136:J145)","v":0}]
[null,null,null,"M&IE Deductions"]
[null,null,null,"Category","# Recipients","# Days","Rate",null,"Total"]
[null,null,null,"Breakfast",null,null,{"$f":"IFERROR(INDEX(#REF!,MATCH(Training!E130,#REF!,0)),\" \")","v":" "},null,{"$f":"IFERROR((E149*F149*G149),\" \")","v":" "}]
[null,null,null,"Lunch",null,null,{"$f":"IFERROR(INDEX(#REF!,MATCH(Training!E130,#REF!,0)),\" \")","v":" "},null,{"$f":"IFERROR((E150*F150*G150),\" \")","v":" "}]
[null,null,null,"Dinner",null,null,{"$f":"IFERROR(INDEX(#REF!,MATCH(Training!E130,#REF!,0)),\" \")","v":" "},null,{"$f":"IFERROR((E151*F151*G151),\" \")","v":" "}]
[null,null,null,"Incidentals",null,null,{"$f":"IFERROR(INDEX(#REF!,MATCH(Training!E130,#REF!,0)),\" \")","v":" "},null,{"$f":"IFERROR((E152*F152*G152),\" \")","v":" "}]
[null,null,null,"Subtotal - M&IE Deductions",null,null,null,null,{"$f":"SUM(I149:J152)","v":0}]
[null,null,null,"Lodging Estimates"]
[null,null,null,"Recipient Type","Origin City","# Recipients","# Nights","Rate","Total"]
[null,null,1,null,null,null,null,{"$f":"E150","v":0},{"$f":"F156*G156*H156","v":0}]
[null,null,2,null,null,null,null,{"$f":"E132","v":0},{"$f":"F157*G157*H157","v":0}]
[null,null,3,null,null,null,null,{"$f":"E132","v":0},{"$f":"F158*G158*H158","v":0}]
[null,null,4,null,null,null,null,{"$f":"E132","v":0},{"$f":"F159*G159*H159","v":0}]
[null,null,5,null,null,null,null,{"$f":"E132","v":0},0]
[null,null,6,null,null,null,null,{"$f":"E132","v":0},0]
[null,null,7,null,null,null,null,{"$f":"E132","v":0},0]
[null,null,8,null,null,null,null,{"$f":"E132","v":0},0]
[null,null,9,null,null,null,null,{"$f":"E132","v":0},0]
[null,null,10,null,null,null,null,{"$f":"E132","v":0},0]
[null,null,null,"Subtotal - Lodging Estimate",null,{"$f":"SUM(F156:F165)","v":0},null,null,{"$f":"SUM(I156:J165)","v":0}]
[null,null,null,"Travel Medical Insurance"]
[null,null,null,"Arranged by CRDF Global?","# Travelers","Vendor",null,"Cost per person",null,"Total"]
[null,null,1,"[please choose]",null,{"$f":"IF(D169=\"Yes\",\"Tokio Marine HCC\",IF(D169=\"No\",\"[enter vendor here]\",\" \"))","v":" "},null,{"$f":"IF(D169=\"Yes\",30,IF(D169=\"No\",\" \",\" \"))","v":" "},null,{"$f":"IFERROR(E169*H169,0)","v":0}]
[null,null,null,"Subtotal - Travel Medical Insurance",null,null,null,null,null,{"$f":"J169","v":0}]
[null,null,null,"Miscellaneous"]
[null,null,null,"Description",null,"Rate/Fee","# Units",null,null,"Total"]
[null,null,1,"Ex: Parking",null,null,null,null,null,{"$f":"F173*G173","v":0}]
[null,null,2,"Ex: Baggage",null,null,null,null,null,{"$f":"F174*G174","v":0}]
[null,null,3,"Ex: Visa",null,null,null,null,null,{"$f":"F175*G175","v":0}]
[null,null,4,null,null,null,null,null,null,{"$f":"F176*G176","v":0}]
[null,null,5,null,null,null,null,null,null,0]
[null,null,6,null,null,null,null,null,null,0]
[null,null,7,null,null,null,null,null,null,0]
[null,null,8,null,null,null,null,null,null,0]
[null,null,9,null,null,null,null,null,null,0]
[null,null,10,null,null,null,null,null,null,0]
[null,null,null,"Subtotal - Miscellaneous",null,null,null,null,null,{"$f":"SUM(J173:J182)","v":0}]
[]
[]
[]
[null,null,null,"Group Transportation Services"]
[]
[null,null,null,"Pick-up Site","Drop-off Site","Is Vendor Identified?","rate per trip","trips per day","# days","Total"]
[null,null,1,null,null,null,null,null,null,{"$f":"H190*I190","v":0}]
[null,null,2,null,null,null,null,null,null,{"$f":"H191*I191","v":0}]
[null,null,3,null,null,null,null,null,null,0]
[null,null,4,null,null,null,null,null,null,0]
[null,null,5,null,null,null,null,null,null,0]
[null,null,6,null,null,null,null,null,null,0]
[null,null,7,null,null,null,null,null,null,0]
[null,null,8,null,null,null,null,null,null,0]
[null,null,9,null,null,null,null,null,null,0]
[null,null,10,null,null,null,null,null,null,0]
[null,null,null,"Subtotal - Group Transport Services",null,null,null,null,null,{"$f":"SUM(J190:J199)","v":0}]
[]
[]
[]
[null,null,null,"Subtotal - Workshop Prep",null,null,null,null,null,{"$f":"J51+J64+J77+J85","v":0}]
[]
[null,null,null,"Subtotal - Honoraria",null,null,null,null,null,{"$f":"J34","v":0}]
[]
[null,null,null,"Subtotal - Local Travel",null,null,null,null,null,{"$f":"J101+J109","v":0}]
[]
[null,null,null,"Subtotal - Non Local Travel",null,null,null,null,null,{"$f":"J125+(I146-I153)+I166+J170+J183","v":0}]
[]
[null,null,null,"Subtotal - Group Transport",null,null,null,null,null,{"$f":"J200","v":0}]
[]
[null,null,null,"Total Training/Workshop",null,null,null,null,null,{"$f":"J204+J206+J208+J210+J212","v":0}]